Workbook

Sheet Information
A1: Schablonmodell, trafiksäkerhets-, restids- och CO2-effekter - RHA regionala hastighetsanalyser, 2024.1
A3: Indata: | B3: Fyll i de grå fälten och tryck "Starta" för att se resultat, avvakta tills makrot har kört klart.
B4: Hela den grå raden på Indata och Resultat måste vara ifylld för att makrot ska fungera
A5: Löpnummer
A6: Region
A7: Län
A8: Vägnummer
A9: Objektnamn: | B9: Förslagsvis namn som används i RHA
A10: Vägkategori: | B10: Ange europaväg, länsväg eller riksväg
A11: Trafikflöde: | B11: ="Fordon per dygn "& 'Beräkna ÅDT'!K1&"."&" Vänligen använd fliken 'Beräkna ÅDT'" -> Fordon per dygn 2028. Vänligen använd fliken 'Beräkna ÅDT'
A12: Längd: | B12: Km. Längd och trafikflöde antas konstant före/efter
A13: Vägtyp före: | B13: GIF om genomfart i tätortsmiljö, 2kf om landsväg, MLV eller MV
A14: Skyltad hastighet före: | B14: Avser huvudsaklig skyltad hastighetsgräns före. GIF 50 eller 70, 2 kf 70, 90 eller 100 och för MLV 90, 100 eller 110
A15: ATK före: | B15: Ja eller Nej. Vid ATK innan så antas ATK efter och tvärt om
A16: Landsbygd eller tätort: | B16: Ger potens enligt effektkatalogen, kap 6, se flik Trafiksäkerhet U3:W5. GIF=tätort och 2kf/MLV/MV=landsbygd
A17: Ombyggnad till: | B17: RHA beräknar enbart effekter vid hastighetsförändringar, vid ombyggnation bör istället EVA användas (är nu en dold flik)
A18: Beräkningsmetod: | B18: Beräkningar i gula fält, har dolts
A19: Hastighet före ATK: | B19: Medelhastighet skattas enligt Effektkatalogsamband för typisk timhastighet.
B20: Linjeföring SK1 till SK2. Inga korsningar med större inverkan på medelhastighet sett över hela sträckan.
A21: Hastighet före med ATK: | B21: Beräknas enligt Effektkatalogen kap 4.5.10 ATK, se Hastighet K5:P15
A22: Hastigheter efter utan ATK: | B22: Beräknas med uppskattningar enligt utvärdering översyn, se hastighet R28:U34
A23: Andelar personbilar och lastbilar med och utan släp | B23: Använd senaste mätning på Trafikflödeskartan: http://vtf.trafikverket.se/SeTrafikfloden
A24: ATK-effekter: | B24: Enligt effektkatalog 4.10, se hastighet V4:Y21
A25: Trafiksäkerhet före: | B25: Före-utfall beräknas enligt effektkatalog med schablontillägg korsningar, se trafiksäkerhet H2:N18
A26: Trafiksäkerhetseffkter: | B26: Med potensmodell, se Trafiksäkerhet U3:W5
A27: Koldioxideffekter: | B27: Beräknas enligt CO2 effekter enligt beslutad politik, indata från Helen Lindblom
A28: Resultat: | B28: Restid i de ljusblå
B29: Trafiksäkerhetseffekter ges i de gröna fälten
B30: Koldioxideffekter ges i de oranga fälten
B31: Summa av respektive effekt återfinns längst ner i "Indata & resultat"
B33: Tryck på "Radera" för att återställa beräkningarna
B35: Vid frågor eller synpunkter, vänligen kontakta:
B36: Emma Lindvall
B37: PLee
B38: emma.lindvall@trafikverket.se

Sheet Indata & Resultat
A1: =Information!A1 -> Schablonmodell, trafiksäkerhets-, restids- och CO2-effekter - RHA regionala hastighetsanalyser, 2024.1 | L1: Ombyggnad | M1: EFTER ÅTGÄRD Skyltad hastighet | N1: ATK
M2: Alternativ: | N2: Alternativ:
M3: GIF50 före: 40
M4: GIF70 före:60 | N4: Om ATK före åtgärd så måste det finnas efter.
A5: Indata: | I5: FÖRE ÅTGÄRD | M5: 2kf90 före:80
F6: Vägkategori | G6: Trafikflöde | H6: Längd | I6: Vägtyp | J6: Skyltad hastighet | K6: ATK | M6: 2kf100 före:80
F7: Alternativ: | G7: (f/dygn) | H7: (km) | I7: Alternativ: | J7: Alternativ: | K7: Alternativ: | M7: MLV90 före: 100 | BM7: per mapkm
F8: Europaväg Riksväg Länsväg | G8: Ska avse 2028 medelutveckling | H8: Antas vara samma före och efter | I8: 2kf tätort = GIF 2kf landbyggd = 2kf Mötesfri landsväg = MLV Motorväg = MV | J8: GIF: 50, 70 | K8: Ja eller Nej . Det går att lägga till ATK för hastighet 50-100 km/h. | M8: MLV110 före: 100 | P8: Andelar personbilar och lastbilar med och utan släp. Hämtas från "Beräkna ÅDT" | AG8: RESULTAT | AR8: Efter | BI8: Tidseffekter (-minskning) | BQ8: Trafiksäkerhet | BS8: CO2 FÖRE | CB8: CO2 EFTER | CK8: Klimat
J9: 2kf: 90, 100 MLV:90,110 MV: 110 | M9: MV110 före: 120 | O9: Beräkning | S9: Hastighet relativt pb | U9: "Hastighet före ATK" | X9: Konstanter AC ATK formel | AB9: Hastigheter före efter ATK | AG9: Pb | AH9: Lb | AI9: Lbs | AJ9: Tot | AK9: Resulterande medelhastighet före | AR9: Beräkning om alt nr = | BB9: Medelhastighet efter | BI9: timmar/år | BM9: Före | BO9: Efter | BQ9: D/år (-minskning) | BR9: SS/år (-minskning) | BS9: pb | BU9: CO2 g/fkm | BV9: lb | BX9: CO2 g/fkm | BY9: lbs | CA9: CO2 g/fkm | CB9: pb | CD9: CO2 g/fkm | CE9: lb | CG9: CO2 g/fkm | CH9: lbs | CJ9: CO2 g/fkm | CK9: Resultat CO2 kiloton/år (-minskning)
A10: Löpnr | B10: Reg | C10: Län | D10: Vägnr | E10: Objektnamn | F10: Vägkategori | G10: ÅDT | H10: Längd (km) | I10: VägTyp | J10: Skyltad hastighet | K10: ATK | L10: Ombyggnad | M10: Hastighetsgräns | N10: ATK Efter | O10: Alt Nr | P10: Pb | Q10: Lb | R10: Lbs | S10: Lb Rel | T10: Lbs Rel | U10: Vpb | V10: Vlb | W10: Vlbs | X10: A pb | Y10: A lb | Z10: A lbs | AA10: Lb korr | AB10: Vpb2 | AC10: Vlb2 | AD10: Vlb Slut | AE10: Vlbs2 | AF10: Vlbs slut | AG10: Pb fkm | AH10: Lb fkm | AI10: Lbs fkm | AJ10: Tot fkm | AK10: PbMedel | AL10: LbMedel | AM10: LbsMedel | AN10: PbLbLbsMedel | AO10: PbMedel1 | AP10: LbMedel1 | AQ10: LbsMedel1 | AR10: Alt1 | AS10: Alt2 | AT10: Alt3 | AU10: Alt4 | AV10: Alt5 | AW10: Alt7 | AX10: Alt8 | AY10: Alt9 | AZ10: Alt10 | BA10: AltEfter | BB10: PbEfter | BC10: LbEfter | BD10: LbsEfter | BE10: PbLbLbsEfter | BF10: PbEfter1 | BG10: LbEfter1 | BH10: LbsEfter1 | BI10: Resultat Pb | BJ10: Resultat Lb | BK10: Resultat Lbs | BL10: Resultat tot | BM10: DkFöre | BN10: SskFöre | BO10: DkEfter | BP10: SskEfter | BQ10: DkResultat | BR10: SskResultat | BS10: CO2 före pb | BT10: CO2 före pb1 | BU10: CO2 före pb res | BV10: CO2 före lb | BW10: CO2 före lb1 | BX10: CO2 före lb res | BY10: CO2 före lbs | BZ10: CO2 före lbs1 | CA10: CO2 före lbs res | CB10: CO2 efter pb | CC10: CO2 efter pb1 | CD10: CO2 efter pb res | CE10: CO2 efter lb | CF10: CO2 efter lb1 | CG10: CO2 efter lb res | CH10: CO2 efter lbs | CI10: CO2 efter lbs1 | CJ10: CO2 efter lbs res | CK10: CO2 pb | CL10: CO2 lb | CM10: CO2 lbs | CN10: CO2 tot | CO10: Kolumn1
A11: 1 | B11: XX | C11: XX | D11: XX | E11: TEST | F11: Riksväg | G11: 2184 | H11: 1 | I11: GIF | J11: 50 | K11: Ja | L11: Nej | M11: 40 | N11: Ja | O11: 2 | P11: 0.9 | Q11: 0.05 | R11: =IF(AND($P11>0%,$Q11>0%),100%-SUM($P11:$Q11),"") -> 0.05 | S11: 1 | T11: 1 | U11: 46.05192674 | V11: 46.05192674 | W11: 46.05192674 | X11: 0.653333 | Y11: 0.653333 | Z11: 0.653333 | AA11: 40 | AB11: 43.95392345 | AC11: 43.95392345 | AD11: 43.95392345 | AE11: 43.95392345 | AF11: 43.95392345 | AG11: 0.717444 | AH11: 0.039858 | AI11: 0.039858 | AJ11: 0.8708973 | AK11: 43.95392345 | AL11: 43.95392345 | AM11: 43.95392345 | AN11: 43.95392345 | AO11: 44.95392345 | AP11: 44.95392345 | AQ11: 44.95392345 | BA11: 3 | BB11: 39.6061707 | BC11: 39.6061707 | BD11: 39.6061707 | BE11: 39.6061707 | BF11: 40.6061707 | BG11: 40.6061707 | BH11: 40.6061707 | BI11: 1791.811601 | BJ11: 99.54508897 | BK11: 99.54508897 | BL11: 1990.901779 | BM11: 0.002629523451 | BN11: 0.05810029195 | BO11: 0.001770047156 | BP11: 0.04431674494 | BQ11: -0.0007485155848 | BR11: -0.01200405388 | BS11: 135.0495785 | BT11: 134.1738247 | BU11: 135.0899302 | BV11: 451.0166228 | BW11: 449.290911 | BX11: 451.0961376 | BY11: 834.3475373 | BZ11: 829.591578 | CA11: 834.5666755 | CB11: 138.8933737 | CC11: 137.8813079 | CD11: 139.2919549 | CE11: 459.259098 | CF11: 0 | CG11: 640.1287876 | CH11: 854.66448 | CI11: 849.3912785 | CJ11: 856.7412213 | CK11: 0.003014717403 | CL11: 0.007534463362 | CM11: 0.0008838330464 | CN11: 0.01143301381 | CO11: =RHA[[#This Row],[VägTyp]]&RHA[[#This Row],[Skyltad hastighet]] -> GIF50
A12: 2 | B12: XX | C12: XX | D12: XX | E12: TEST | F12: Riksväg | G12: 5000 | H12: 1 | I12: GIF | J12: 70 | K12: Ja | L12: Nej | M12: 60 | N12: Ja | O12: 4 | P12: 0.9 | Q12: 0.05 | R12: 0.05 | S12: 1.000453764 | T12: 0.9952753318 | U12: 65.97327536 | V12: 66.00321168 | W12: 65.66157353 | X12: 0.668 | Y12: 0.709 | Z12: 0.709 | AA12: 60 | AB12: 63.99014794 | AC12: 64.25627708 | AD12: 63.99014794 | AE12: 64.01405563 | AF12: 63.99014794 | AG12: 1.6425 | AH12: 0.09125 | AI12: 0.09125 | AJ12: 1.9938125 | AK12: 63.99014794 | AL12: 63.99014794 | AM12: 63.99014794 | AN12: 63.99014794 | AO12: 64.99014794 | AP12: 64.99014794 | AQ12: 64.99014794 | BA12: 6 | BB12: 58.8708571 | BC12: 59.47313673 | BD12: 59.5382523 | BE12: 58.93372889 | BF12: 59.8708571 | BG12: 60.47313673 | BH12: 60.5382523 | BI12: 2232.038644 | BJ12: 108.3053931 | BK12: 106.6273589 | BL12: 2446.971396 | BM12: 0.003666231322 | BN12: 0.05402721454 | BO12: 0.002255794964 | BP12: 0.03699698112 | BQ12: -0.002812145641 | BR12: -0.03395509226 | BS12: 124.0093274 | BT12: 123.815134 | BU12: 124.0112406 | BV12: 441.9553188 | BW12: 442.908863 | BX12: 441.9459244 | BY12: 763.7973581 | BZ12: 761.62761 | CA12: 763.8187346 | CB12: 125.4914644 | CC12: 125.1268809 | CD12: 125.5385477 | CE12: 439.1970398 | CF12: 0 | CG12: 231.3967896 | CH12: 773.769456 | CI12: 771.0824657 | CJ12: 775.0101676 | CK12: 0.00250860201 | CL12: -0.01921260855 | CM12: 0.001021218265 | CN12: -0.01568278828 | CO12: =RHA[[#This Row],[VägTyp]]&RHA[[#This Row],[Skyltad hastighet]] -> GIF70
A13: 3 | B13: XX | C13: XX | D13: XX | E13: TEST | F13: Riksväg | G13: 7816 | H13: 1 | I13: 2kf | J13: 90 | K13: Ja | L13: Nej | M13: 80 | N13: Ja | O13: 8 | P13: 0.9 | Q13: 0.05 | R13: 0.05 | S13: 0.9791529504 | T13: 0.9307771098 | U13: 85.9376527 | V13: 84.14610619 | W13: 79.9888 | X13: 0.641957 | Y13: 0.873 | Z13: 0.896 | AA13: 72.5 | AB13: 83.81171771 | AC13: 82.66705071 | AD13: 82.66705071 | AE13: 79.2099648 | AF13: 79.2099648 | AG13: 2.567556 | AH13: 0.142642 | AI13: 0.142642 | AJ13: 3.1167277 | AK13: 83.81171771 | AL13: 82.66705071 | AM13: 79.2099648 | AN13: 83.52439672 | AO13: 84.81171771 | AP13: 83.66705071 | AQ13: 80.2099648 | BA13: 12 | BB13: 79.25753934 | BC13: 79.80825419 | BD13: 77.82734401 | BE13: 79.21208729 | BF13: 80.25753934 | BG13: 80.80825419 | BH13: 78.82734401 | BI13: 1760.291674 | BJ13: 61.80881392 | BK13: 31.99178509 | BL13: 1854.092273 | BM13: 0.003429662866 | BN13: 0.03817949196 | BO13: 0.002508547214 | BP13: 0.02991778594 | BQ13: -0.002870866667 | BR13: -0.025749488 | BS13: 119.3594184 | BT13: 119.7734889 | BU13: 119.2814562 | BV13: 495.328912 | BW13: 501.1399248 | BX13: 493.3941395 | BY13: 686.6175618 | BZ13: 689.12964 | CA13: 687.1450098 | CB13: 117.6871744 | CC13: 117.968542 | CD13: 117.7596376 | CE13: 479.520084 | CF13: 484.5189916 | CG13: 478.5615644 | CH13: 684.4746312 | CI13: 686.6175618 | CJ13: 684.1046414 | CK13: -0.00390735451 | CL13: -0.002115748173 | CM13: -0.0004336842307 | CN13: -0.006456786914 | CO13: =RHA[[#This Row],[VägTyp]]&RHA[[#This Row],[Skyltad hastighet]] -> 2kf90
A14: 4 | B14: XX | C14: XX | D14: XX | E14: TEST | F14: Riksväg | G14: 10632 | H14: 1 | I14: 2kf | J14: 100 | K14: Ja | L14: Nej | M14: 80 | N14: Ja | O14: 10 | P14: 0.9 | Q14: 0.05 | R14: 0.05 | S14: 0.9513929003 | T14: 0.8695408698 | U14: 94.12303665 | V14: 89.54798883 | W14: 81.84382716 | X14: 0.75 | Y14: 0.899 | Z14: 0.905 | AA14: 72.5 | AB14: 93.09227749 | AC14: 87.82614196 | AD14: 87.82614196 | AE14: 80.95616358 | AF14: 80.95616358 | AG14: 3.492612 | AH14: 0.194034 | AI14: 0.194034 | AJ14: 4.2396429 | AK14: 93.09227749 | AL14: 87.82614196 | AM14: 80.95616358 | AN14: 92.22216501 | AO14: 94.09227749 | AP14: 88.82614196 | AQ14: 81.95616358 | BA14: 14 | BB14: 83.70747775 | BC14: 81.36948324 | BD14: 77.41035494 | BE14: 83.24927227 | BF14: 84.70747775 | BG14: 82.36948324 | BH14: 78.41035494 | BI14: 4206.272842 | BJ14: 175.3074225 | BK14: 109.7852899 | BL14: 4491.365555 | BM14: 0.003280760708 | BN14: 0.03388081475 | BO14: 0.00179345645 | BP14: 0.02115735893 | BQ14: -0.006305638937 | BR14: -0.05394290913 | BS14: 124.0415149 | BT14: 124.6944508 | BU14: 124.1017662 | BV14: 527.0909928 | BW14: 534.255514 | BX14: 525.8453831 | BY14: 692.0108658 | BZ14: 695.2612392 | CA14: 691.8683811 | CB14: 119.3594184 | CC14: 119.7734889 | CD14: 119.2382935 | CE14: 484.5189916 | CF14: 489.788601 | CG14: 486.466024 | CH14: 682.7008482 | CI14: 684.4746312 | CJ14: 683.4287288 | CK14: -0.01698622306 | CL14: -0.007640934575 | CM14: -0.001637579485 | CN14: -0.02626473712 | CO14: =RHA[[#This Row],[VägTyp]]&RHA[[#This Row],[Skyltad hastighet]] -> 2kf100
A15: 5 | B15: XX | C15: XX | D15: XX | E15: TEST | F15: Riksväg | G15: 13448 | H15: 1 | I15: MLV | J15: 90 | K15: Ja | L15: Nej | M15: 100 | N15: Ja | O15: 12 | P15: 0.9 | Q15: 0.05 | R15: 0.05 | S15: 0.9690017636 | T15: 0.9255799852 | U15: 84.89675343 | V15: 82.2651038 | W15: 78.57873579 | X15: 0.641957 | Y15: 0.873 | Z15: 0.896 | AA15: 72.5 | AB15: 83.14350514 | AC15: 81.02493562 | AD15: 81.02493562 | AE15: 77.94654727 | AF15: 77.94654727 | AG15: 4.417668 | AH15: 0.245426 | AI15: 0.245426 | AJ15: 5.3625581 | AK15: 83.14350514 | AL15: 81.02493562 | AM15: 77.94654727 | AN15: 82.77772877 | AO15: 84.14350514 | AP15: 82.02493562 | AQ15: 78.94654727 | BA15: 16 | BB15: 90.02088952 | BC15: 85.05066394 | BD15: 79.5144597 | BE15: 89.17121833 | BF15: 91.02088952 | BG15: 86.05066394 | BH15: 80.5144597 | BI15: -4059.240124 | BJ15: -143.3734148 | BK15: -62.08681449 | BL15: -4264.700353 | BM15: 0.004153294575 | BN15: 0.04623506246 | BO15: 0.006442119553 | BP15: 0.06510329082 | BQ15: 0.01227395692 | BR15: 0.1011819708 | BS15: 118.9718884 | BT15: 119.3594184 | BU15: 119.0275009 | BV15: 484.5189916 | BW15: 489.788601 | BX15: 484.6503926 | BY15: 684.4746312 | BZ15: 686.6175618 | CA15: 684.3600857 | CB15: 122.2419507 | CC15: 122.8152649 | CD15: 122.253927 | CE15: 507.2216393 | CF15: 513.5740554 | CG15: 507.5434777 | CH15: 689.12964 | CI15: 692.0108658 | CJ15: 687.7306888 | CK15: 0.01425327914 | CL15: 0.005618558292 | CM15: 0.0008272336246 | CN15: 0.02069907106 | CO15: =RHA[[#This Row],[VägTyp]]&RHA[[#This Row],[Skyltad hastighet]] -> MLV90
A16: 6 | B16: XX | C16: XX | D16: XX | E16: TEST | F16: Riksväg | G16: 16264 | H16: 1 | I16: MLV | J16: 110 | K16: Nej | L16: Nej | M16: 100 | N16: Nej | O16: 13 | P16: 0.9 | Q16: 0.05 | R16: 0.05 | S16: 0.8803827751 | T16: 0.7990430622 | U16: 104.5 | V16: 92 | W16: 83.5 | X16: 0.75 | Y16: 0.899 | Z16: 0.905 | AA16: 72.5 | AB16: 103.375 | AC16: 90.0305 | AD16: 90.0305 | AE16: 82.455 | AF16: 82.455 | AG16: 5.342724 | AH16: 0.296818 | AI16: 0.296818 | AJ16: 6.4854733 | AK16: 104.5 | AL16: 92 | AM16: 83.5 | AN16: 102.825 | AO16: 105.5 | AP16: 93 | AQ16: 84.5 | BA16: 17 | BB16: 102.2 | BC16: 92 | BD16: 83 | BE16: 100.4807993 | BF16: 103.2 | BG16: 93 | BH16: 84 | BI16: 1150.597403 | BJ16: 0 | BK16: 21.4138951 | BL16: 1172.011298 | BM16: 0.0009656820016 | BN16: 0.1142799835 | BO16: 0.000842833674 | BP16: 0.1027775448 | BQ16: -0.0007967295489 | BR16: -0.07459875916 | BS16: 132.6835425 | BT16: 134.599848 | BU16: 133.6416953 | BV16: 0 | BW16: 0 | BX16: 0 | BY16: 702.8694288 | BZ16: 702.8694288 | CA16: 702.8694288 | CB16: 130.8733995 | CC16: 131.7652007 | CD16: 131.0517597 | CE16: 0 | CF16: 0 | CG16: 0 | CH16: 698.8807602 | CI16: 702.8694288 | CJ16: 698.8807602 | CK16: -0.01383731093 | CL16: 0 | CM16: -0.001183908637 | CN16: -0.01502121956 | CO16: =RHA[[#This Row],[VägTyp]]&RHA[[#This Row],[Skyltad hastighet]] -> MLV110
A17: 7 | B17: XX | C17: XX | D17: XX | E17: TEST | F17: Riksväg | G17: 19080 | H17: 1 | I17: MV | J17: 110 | K17: Nej | L17: Nej | M17: 120 | N17: Nej | O17: 14 | P17: 0.9 | Q17: 0.05 | R17: 0.05 | S17: 0.8532110092 | T17: 0.7752293578 | U17: 109 | V17: 93 | W17: 84.5 | X17: 0.75 | Y17: 0.899 | Z17: 0.905 | AA17: 72.5 | AB17: 106.75 | AC17: 90.9295 | AD17: 90.9295 | AE17: 83.36 | AF17: 83.36 | AG17: 6.26778 | AH17: 0.34821 | AI17: 0.34821 | AJ17: 7.6083885 | AK17: 109 | AL17: 93 | AM17: 84.5 | AN17: 106.975 | AO17: 110 | AP17: 94 | AQ17: 85.5 | BA17: 18 | BB17: 112.7 | BC17: 96.2 | BD17: 84.5 | BE17: 109.9230927 | BF17: 113.7 | BG17: 97.2 | BH17: 85.5 | BI17: -1887.839437 | BJ17: -124.5469787 | BK17: 0 | BL17: -2012.386416 | BM17: 0.0005262522022 | BN17: 0.007832353944 | BO17: 0.0006178074256 | BP17: 0.008875705135 | BQ17: 0.0006965877084 | BR17: 0.007938221206 | BS17: 137.6733606 | BT17: 138.750946 | BU17: 137.6733606 | BV17: 0 | BW17: 0 | BX17: 0 | BY17: 702.8694288 | BZ17: 711.9542088 | CA17: 707.4118188 | CB17: 142.1429458 | CC17: 143.3266936 | CD17: 141.7878215 | CE17: 0 | CF17: 0 | CG17: 0 | CH17: 702.8694288 | CI17: 711.9542088 | CJ17: 707.4118188 | CK17: 0.02578853522 | CL17: 0 | CM17: 0 | CN17: 0.02578853522 | CO17: =RHA[[#This Row],[VägTyp]]&RHA[[#This Row],[Skyltad hastighet]] -> MV110
CO18: =RHA[[#This Row],[VägTyp]]&RHA[[#This Row],[Skyltad hastighet]] -> 
CO19: =RHA[[#This Row],[VägTyp]]&RHA[[#This Row],[Skyltad hastighet]] -> 
CO20: =RHA[[#This Row],[VägTyp]]&RHA[[#This Row],[Skyltad hastighet]] -> 
CO21: =RHA[[#This Row],[VägTyp]]&RHA[[#This Row],[Skyltad hastighet]] -> 
CO22: =RHA[[#This Row],[VägTyp]]&RHA[[#This Row],[Skyltad hastighet]] -> 
CO23: =RHA[[#This Row],[VägTyp]]&RHA[[#This Row],[Skyltad hastighet]] -> 
CO24: =RHA[[#This Row],[VägTyp]]&RHA[[#This Row],[Skyltad hastighet]] -> 
CO25: =RHA[[#This Row],[VägTyp]]&RHA[[#This Row],[Skyltad hastighet]] -> 
CO26: =RHA[[#This Row],[VägTyp]]&RHA[[#This Row],[Skyltad hastighet]] -> 
CO27: =RHA[[#This Row],[VägTyp]]&RHA[[#This Row],[Skyltad hastighet]] -> 
CO28: =RHA[[#This Row],[VägTyp]]&RHA[[#This Row],[Skyltad hastighet]] -> 
CO29: =RHA[[#This Row],[VägTyp]]&RHA[[#This Row],[Skyltad hastighet]] -> 
CO30: =RHA[[#This Row],[VägTyp]]&RHA[[#This Row],[Skyltad hastighet]] -> 
CO31: =RHA[[#This Row],[VägTyp]]&RHA[[#This Row],[Skyltad hastighet]] -> 
CO32: =RHA[[#This Row],[VägTyp]]&RHA[[#This Row],[Skyltad hastighet]] -> 
CO33: =RHA[[#This Row],[VägTyp]]&RHA[[#This Row],[Skyltad hastighet]] -> 
CO34: =RHA[[#This Row],[VägTyp]]&RHA[[#This Row],[Skyltad hastighet]] -> 
CO35: =RHA[[#This Row],[VägTyp]]&RHA[[#This Row],[Skyltad hastighet]] -> 
CO36: =RHA[[#This Row],[VägTyp]]&RHA[[#This Row],[Skyltad hastighet]] -> 
CO37: =RHA[[#This Row],[VägTyp]]&RHA[[#This Row],[Skyltad hastighet]] -> 
CO38: =RHA[[#This Row],[VägTyp]]&RHA[[#This Row],[Skyltad hastighet]] -> 
CO39: =RHA[[#This Row],[VägTyp]]&RHA[[#This Row],[Skyltad hastighet]] -> 
CO40: =RHA[[#This Row],[VägTyp]]&RHA[[#This Row],[Skyltad hastighet]] -> 
CO41: =RHA[[#This Row],[VägTyp]]&RHA[[#This Row],[Skyltad hastighet]] -> 
CO42: =RHA[[#This Row],[VägTyp]]&RHA[[#This Row],[Skyltad hastighet]] -> 
CO43: =RHA[[#This Row],[VägTyp]]&RHA[[#This Row],[Skyltad hastighet]] -> 
CO44: =RHA[[#This Row],[VägTyp]]&RHA[[#This Row],[Skyltad hastighet]] -> 
CO45: =RHA[[#This Row],[VägTyp]]&RHA[[#This Row],[Skyltad hastighet]] -> 
CO46: =RHA[[#This Row],[VägTyp]]&RHA[[#This Row],[Skyltad hastighet]] -> 
CO47: =RHA[[#This Row],[VägTyp]]&RHA[[#This Row],[Skyltad hastighet]] -> 
CO48: =RHA[[#This Row],[VägTyp]]&RHA[[#This Row],[Skyltad hastighet]] -> 
CO49: =RHA[[#This Row],[VägTyp]]&RHA[[#This Row],[Skyltad hastighet]] -> 
CO50: =RHA[[#This Row],[VägTyp]]&RHA[[#This Row],[Skyltad hastighet]] -> 
CO51: =RHA[[#This Row],[VägTyp]]&RHA[[#This Row],[Skyltad hastighet]] -> 
CO52: =RHA[[#This Row],[VägTyp]]&RHA[[#This Row],[Skyltad hastighet]] -> 
CO53: =RHA[[#This Row],[VägTyp]]&RHA[[#This Row],[Skyltad hastighet]] -> 
CO54: =RHA[[#This Row],[VägTyp]]&RHA[[#This Row],[Skyltad hastighet]] -> 
CO55: =RHA[[#This Row],[VägTyp]]&RHA[[#This Row],[Skyltad hastighet]] -> 
CO56: =RHA[[#This Row],[VägTyp]]&RHA[[#This Row],[Skyltad hastighet]] -> 
CO57: =RHA[[#This Row],[VägTyp]]&RHA[[#This Row],[Skyltad hastighet]] -> 
CO58: =RHA[[#This Row],[VägTyp]]&RHA[[#This Row],[Skyltad hastighet]] -> 
CO59: =RHA[[#This Row],[VägTyp]]&RHA[[#This Row],[Skyltad hastighet]] -> 
CO60: =RHA[[#This Row],[VägTyp]]&RHA[[#This Row],[Skyltad hastighet]] -> 
CO61: =RHA[[#This Row],[VägTyp]]&RHA[[#This Row],[Skyltad hastighet]] -> 
CO62: =RHA[[#This Row],[VägTyp]]&RHA[[#This Row],[Skyltad hastighet]] -> 
CO63: =RHA[[#This Row],[VägTyp]]&RHA[[#This Row],[Skyltad hastighet]] -> 
CO64: =RHA[[#This Row],[VägTyp]]&RHA[[#This Row],[Skyltad hastighet]] -> 
CO65: =RHA[[#This Row],[VägTyp]]&RHA[[#This Row],[Skyltad hastighet]] -> 
CO66: =RHA[[#This Row],[VägTyp]]&RHA[[#This Row],[Skyltad hastighet]] -> 
CO67: =RHA[[#This Row],[VägTyp]]&RHA[[#This Row],[Skyltad hastighet]] -> 
CO68: =RHA[[#This Row],[VägTyp]]&RHA[[#This Row],[Skyltad hastighet]] -> 
CO69: =RHA[[#This Row],[VägTyp]]&RHA[[#This Row],[Skyltad hastighet]] -> 
CO70: =RHA[[#This Row],[VägTyp]]&RHA[[#This Row],[Skyltad hastighet]] -> 
CO71: =RHA[[#This Row],[VägTyp]]&RHA[[#This Row],[Skyltad hastighet]] -> 
CO72: =RHA[[#This Row],[VägTyp]]&RHA[[#This Row],[Skyltad hastighet]] -> 
CO73: =RHA[[#This Row],[VägTyp]]&RHA[[#This Row],[Skyltad hastighet]] -> 
CO74: =RHA[[#This Row],[VägTyp]]&RHA[[#This Row],[Skyltad hastighet]] -> 
CO75: =RHA[[#This Row],[VägTyp]]&RHA[[#This Row],[Skyltad hastighet]] -> 
CO76: =RHA[[#This Row],[VägTyp]]&RHA[[#This Row],[Skyltad hastighet]] -> 
CO77: =RHA[[#This Row],[VägTyp]]&RHA[[#This Row],[Skyltad hastighet]] -> 
CO78: =RHA[[#This Row],[VägTyp]]&RHA[[#This Row],[Skyltad hastighet]] -> 
CO79: =RHA[[#This Row],[VägTyp]]&RHA[[#This Row],[Skyltad hastighet]] -> 
CO80: =RHA[[#This Row],[VägTyp]]&RHA[[#This Row],[Skyltad hastighet]] -> 
CO81: =RHA[[#This Row],[VägTyp]]&RHA[[#This Row],[Skyltad hastighet]] -> 
CO82: =RHA[[#This Row],[VägTyp]]&RHA[[#This Row],[Skyltad hastighet]] -> 
CO83: =RHA[[#This Row],[VägTyp]]&RHA[[#This Row],[Skyltad hastighet]] -> 
CO84: =RHA[[#This Row],[VägTyp]]&RHA[[#This Row],[Skyltad hastighet]] -> 
CO85: =RHA[[#This Row],[VägTyp]]&RHA[[#This Row],[Skyltad hastighet]] -> 
CO86: =RHA[[#This Row],[VägTyp]]&RHA[[#This Row],[Skyltad hastighet]] -> 
CO87: =RHA[[#This Row],[VägTyp]]&RHA[[#This Row],[Skyltad hastighet]] -> 
CO88: =RHA[[#This Row],[VägTyp]]&RHA[[#This Row],[Skyltad hastighet]] -> 
CO89: =RHA[[#This Row],[VägTyp]]&RHA[[#This Row],[Skyltad hastighet]] -> 
CO90: =RHA[[#This Row],[VägTyp]]&RHA[[#This Row],[Skyltad hastighet]] -> 
R92: Summa | BI92: =SUM(RHA[Resultat Pb]) -> 5193.932604 | BJ92: =SUM(RHA[Resultat Lb]) -> 177.0463251 | BK92: =SUM(RHA[Resultat Lbs]) -> 307.2766034 | BL92: =SUM(RHA[Resultat tot]) -> 5678.255532 | BQ92: =SUM(RHA[DkResultat]) -> -0.0005633517457 | BR92: =SUM(RHA[SskResultat]) -> -0.09113011041 | CK92: =SUM(RHA[CO2 pb]) -> 0.01083424528 | CL92: =SUM(RHA[CO2 lb]) -> -0.01581626965 | CM92: =SUM(RHA[CO2 lbs]) -> -0.0005228874171 | CN92: =SUM(RHA[CO2 tot]) -> -0.00550491178

Sheet Beräkna ÅDT
A1: Beräkning av ÅDT | J1: Trafiköppningsår | K1: 2028
A2: Plats - Sträcka | B2: Beskrivning av vilken stäcka som avses | J2: Trafikbasår | K2: 2019
A3: Län - Lastbil | B3: Välj län utefter geografisk plats, tabell J10:L32 | J3: Prognosår 1 | K3: 2045
A4: Grupp - Personbil | B4: Välj grupp utefter geografisk plats K37:M66, respektive kommuns gruppnummer återfinns i tabellen K68:L358
A5: ÅDT enligt TFK/TIKK | B5: Återfinns på respektive länk i Trafikflödeskartan, använd senaste mätning | E5: http://vtf.trafikverket.se/SeTrafikinformation#
A6: Året för senaste trafikmätning enligt TFK/TIKK | B6: Återfinns på respektive länk i Trafikflödeskartan, använd senaste mätning | E6: http://vtf.trafikverket.se/SeTrafikinformation# | J6: Trafikutvecklingstal för EVA och manuella beräkningar 2019-2045
A7: Trafikutveckling antal år | B7: ="Beräknas automatiskt:"&K1&" -Året för senaste trafikmätning" -> Beräknas automatiskt:2028 -Året för senaste trafikmätning | J7: Trafikutvecklingstal finns på EVA:s sida på Trafikverket
A8: ="ÅDT"&K1 -> ÅDT2028 | B8: Kopiera och använd i "Indata & Resultat" för respektive stäcka | J8: Nedanstående trafikutvecklingstal gäller fr.o.m. 2024-04-02
A11: Plats - Sträcka | B11: Lastbilsandel % | C11: Län - Lastbil | D11: Grupp - Personbil | E11: ÅDT enl. vägtrafikflödeskartan (TFK) | F11: Senaste året för trafikmätning enl. TFK/TIKK | G11: Trafikutveckling antal år | H11: ÅDT 2028 (utifrån gällande trafikutvecklingstal) | J11: LASTBIL - Län | K11: Prognos 2019-2045 [kvot] | L11: Årlig utveckling %
A12: TEST | B12: 0.1 | C12: Östergötland | D12: Skåne | E12: 2000 | F12: 2019 | G12: =IF(F12>0,$K$1-F12,"0") -> 9 | H12: =E12*B12*(1+VLOOKUP(C12,Tabell43[],3,FALSE))^G12+E12*(1-B12)*(1+VLOOKUP(D12,Tabell57[],3,FALSE))^G12 -> 2187.209375 | J12: Stockholm | K12: 1.287884839 | L12: =(K12^(1/($K$3-$K$2))-1) -> 0.009778314203
A13: TEST | B13: 0.15 | C13: Gotland | D13: Östergötland | E13: 2000 | F13: 2020 | G13: 8 | H13: =E13*B13*(1+VLOOKUP(C13,Tabell43[],3,FALSE))^G13+E13*(1-B13)*(1+VLOOKUP(D13,Tabell57[],3,FALSE))^G13 -> 2146.55505 | J13: Uppsala | K13: 1.401439474 | L13: 0.0130653814
A14: TEST | B14: 0.2 | C14: Västerbotten | D14: Västerbottens kust och inland | E14: 2000 | F14: 2021 | G14: 7 | H14: =E14*B14*(1+VLOOKUP(C14,Tabell43[],3,FALSE))^G14+E14*(1-B14)*(1+VLOOKUP(D14,Tabell57[],3,FALSE))^G14 ->  | J14: Södermanland | K14: 1.39521845 | L14: 0.01289204884
G15: 0 | H15: =E15*B15*(1+VLOOKUP(C15,Tabell43[],3,FALSE))^G15+E15*(1-B15)*(1+VLOOKUP(D15,Tabell57[],3,FALSE))^G15 ->  | J15: Östergötland | K15: 1.401916035 | L15: 0.01307862902
G16: 0 | H16: =E16*B16*(1+VLOOKUP(C16,Tabell43[],3,FALSE))^G16+E16*(1-B16)*(1+VLOOKUP(D16,Tabell57[],3,FALSE))^G16 ->  | J16: Jönköping | K16: 1.39541932 | L16: 0.01289765716
G17: 0 | H17: =E17*B17*(1+VLOOKUP(C17,Tabell43[],3,FALSE))^G17+E17*(1-B17)*(1+VLOOKUP(D17,Tabell57[],3,FALSE))^G17 ->  | J17: Kronoberg | K17: 1.373447326 | L17: 0.01227954652
G18: 0 | H18: =E18*B18*(1+VLOOKUP(C18,Tabell43[],3,FALSE))^G18+E18*(1-B18)*(1+VLOOKUP(D18,Tabell57[],3,FALSE))^G18 ->  | J18: Kalmar | K18: 1.365263407 | L18: 0.01204688547
G19: 0 | H19: =E19*B19*(1+VLOOKUP(C19,Tabell43[],3,FALSE))^G19+E19*(1-B19)*(1+VLOOKUP(D19,Tabell57[],3,FALSE))^G19 ->  | J19: Gotland | K19: 1.203316198 | L19: 0.007143906181
G20: 0 | H20: =E20*B20*(1+VLOOKUP(C20,Tabell43[],3,FALSE))^G20+E20*(1-B20)*(1+VLOOKUP(D20,Tabell57[],3,FALSE))^G20 ->  | J20: Blekinge | K20: 1.303333052 | L20: 0.01024150695
G21: 0 | H21: =E21*B21*(1+VLOOKUP(C21,Tabell43[],3,FALSE))^G21+E21*(1-B21)*(1+VLOOKUP(D21,Tabell57[],3,FALSE))^G21 ->  | J21: Skåne | K21: 1.405309653 | L21: 0.01317284093
G22: 0 | H22: =E22*B22*(1+VLOOKUP(C22,Tabell43[],3,FALSE))^G22+E22*(1-B22)*(1+VLOOKUP(D22,Tabell57[],3,FALSE))^G22 ->  | J22: Halland | K22: 1.336433863 | L22: 0.01121646775
G23: 0 | H23: =E23*B23*(1+VLOOKUP(C23,Tabell43[],3,FALSE))^G23+E23*(1-B23)*(1+VLOOKUP(D23,Tabell57[],3,FALSE))^G23 ->  | J23: Västra Götaland | K23: 1.396835467 | L23: 0.01293717415
G24: 0 | H24: =E24*B24*(1+VLOOKUP(C24,Tabell43[],3,FALSE))^G24+E24*(1-B24)*(1+VLOOKUP(D24,Tabell57[],3,FALSE))^G24 ->  | J24: Värmland | K24: 1.274013374 | L24: 0.009357822986
G25: 0 | H25: =E25*B25*(1+VLOOKUP(C25,Tabell43[],3,FALSE))^G25+E25*(1-B25)*(1+VLOOKUP(D25,Tabell57[],3,FALSE))^G25 ->  | J25: Örebro | K25: 1.42086478 | L25: 0.01360189409
G26: 0 | H26: =E26*B26*(1+VLOOKUP(C26,Tabell43[],3,FALSE))^G26+E26*(1-B26)*(1+VLOOKUP(D26,Tabell57[],3,FALSE))^G26 ->  | J26: Västmanland | K26: 1.481466263 | L26: 0.01523146164
G27: 0 | H27: =E27*B27*(1+VLOOKUP(C27,Tabell43[],3,FALSE))^G27+E27*(1-B27)*(1+VLOOKUP(D27,Tabell57[],3,FALSE))^G27 ->  | J27: Dalarna | K27: 1.35347525 | L27: 0.01170939149
G28: 0 | H28: =E28*B28*(1+VLOOKUP(C28,Tabell43[],3,FALSE))^G28+E28*(1-B28)*(1+VLOOKUP(D28,Tabell57[],3,FALSE))^G28 ->  | J28: Gävleborg | K28: 1.514056198 | L28: 0.01608148629
G29: 0 | H29: =E29*B29*(1+VLOOKUP(C29,Tabell43[],3,FALSE))^G29+E29*(1-B29)*(1+VLOOKUP(D29,Tabell57[],3,FALSE))^G29 ->  | J29: Västernorrland | K29: 1.649567032 | L29: 0.01943697967
G30: 0 | H30: =E30*B30*(1+VLOOKUP(C30,Tabell43[],3,FALSE))^G30+E30*(1-B30)*(1+VLOOKUP(D30,Tabell57[],3,FALSE))^G30 ->  | J30: Jämtland | K30: 1.376444782 | L30: 0.01236442792
G31: 0 | H31: =E31*B31*(1+VLOOKUP(C31,Tabell43[],3,FALSE))^G31+E31*(1-B31)*(1+VLOOKUP(D31,Tabell57[],3,FALSE))^G31 ->  | J31: Västerbotten | K31: 1.382980413 | L31: 0.01254888817
G32: 0 | H32: =E32*B32*(1+VLOOKUP(C32,Tabell43[],3,FALSE))^G32+E32*(1-B32)*(1+VLOOKUP(D32,Tabell57[],3,FALSE))^G32 ->  | J32: Norrbotten | K32: 1.362348069 | L32: 0.01196368112
G33: 0 | H33: =E33*B33*(1+VLOOKUP(C33,Tabell43[],3,FALSE))^G33+E33*(1-B33)*(1+VLOOKUP(D33,Tabell57[],3,FALSE))^G33 ->  | J33: Riket | K33: 1.397058351 | L33: 0.01294339012
G34: 0 | H34: =E34*B34*(1+VLOOKUP(C34,Tabell43[],3,FALSE))^G34+E34*(1-B34)*(1+VLOOKUP(D34,Tabell57[],3,FALSE))^G34 -> 
G35: 0 | H35: =E35*B35*(1+VLOOKUP(C35,Tabell43[],3,FALSE))^G35+E35*(1-B35)*(1+VLOOKUP(D35,Tabell57[],3,FALSE))^G35 ->  | J35: PERSONBIL - Grupp | K35: Prognos 2019-2045 [kvot] | L35: Årlig utveckling %
G36: 0 | H36: =E36*B36*(1+VLOOKUP(C36,Tabell43[],3,FALSE))^G36+E36*(1-B36)*(1+VLOOKUP(D36,Tabell57[],3,FALSE))^G36 ->  | J36: Stockholm | K36: 1.31732719 | L36: =(K36^(1/($K$3-$K$2))-1) -> 0.01065656669
G37: 0 | H37: =E37*B37*(1+VLOOKUP(C37,Tabell43[],3,FALSE))^G37+E37*(1-B37)*(1+VLOOKUP(D37,Tabell57[],3,FALSE))^G37 ->  | J37: Uppsala | K37: 1.270779855 | L37: 0.009259171466
G38: 0 | H38: =E38*B38*(1+VLOOKUP(C38,Tabell43[],3,FALSE))^G38+E38*(1-B38)*(1+VLOOKUP(D38,Tabell57[],3,FALSE))^G38 ->  | J38: Södermanland | K38: 1.229111041 | L38: 0.007965835813
G39: 0 | H39: =E39*B39*(1+VLOOKUP(C39,Tabell43[],3,FALSE))^G39+E39*(1-B39)*(1+VLOOKUP(D39,Tabell57[],3,FALSE))^G39 ->  | J39: Östergötland | K39: 1.26828279 | L39: 0.009182823155
G40: 0 | H40: =E40*B40*(1+VLOOKUP(C40,Tabell43[],3,FALSE))^G40+E40*(1-B40)*(1+VLOOKUP(D40,Tabell57[],3,FALSE))^G40 ->  | J40: Jönköping | K40: 1.249124695 | L40: 0.008592205287
G41: 0 | H41: =E41*B41*(1+VLOOKUP(C41,Tabell43[],3,FALSE))^G41+E41*(1-B41)*(1+VLOOKUP(D41,Tabell57[],3,FALSE))^G41 ->  | J41: Kronoberg | K41: 1.204670074 | L41: 0.007187465657
G42: 0 | H42: =E42*B42*(1+VLOOKUP(C42,Tabell43[],3,FALSE))^G42+E42*(1-B42)*(1+VLOOKUP(D42,Tabell57[],3,FALSE))^G42 ->  | J42: Kalmar | K42: 1.150172325 | L42: 0.005395727058
G43: 0 | H43: =E43*B43*(1+VLOOKUP(C43,Tabell43[],3,FALSE))^G43+E43*(1-B43)*(1+VLOOKUP(D43,Tabell57[],3,FALSE))^G43 ->  | J43: Gotland | K43: 1.214038739 | L43: 0.007487608479
G44: 0 | H44: =E44*B44*(1+VLOOKUP(C44,Tabell43[],3,FALSE))^G44+E44*(1-B44)*(1+VLOOKUP(D44,Tabell57[],3,FALSE))^G44 ->  | J44: Blekinge | K44: 1.167367392 | L44: 0.005969714346
G45: 0 | H45: =E45*B45*(1+VLOOKUP(C45,Tabell43[],3,FALSE))^G45+E45*(1-B45)*(1+VLOOKUP(D45,Tabell57[],3,FALSE))^G45 ->  | J45: Skåne | K45: 1.283439621 | L45: 0.009644040675
G46: 0 | H46: =E46*B46*(1+VLOOKUP(C46,Tabell43[],3,FALSE))^G46+E46*(1-B46)*(1+VLOOKUP(D46,Tabell57[],3,FALSE))^G46 ->  | J46: Halland | K46: 1.274678119 | L46: 0.009378073862
G47: 0 | H47: =E47*B47*(1+VLOOKUP(C47,Tabell43[],3,FALSE))^G47+E47*(1-B47)*(1+VLOOKUP(D47,Tabell57[],3,FALSE))^G47 ->  | J47: Västra Götaland | K47: 1.225228314 | L47: 0.0078431827
G48: 0 | H48: =E48*B48*(1+VLOOKUP(C48,Tabell43[],3,FALSE))^G48+E48*(1-B48)*(1+VLOOKUP(D48,Tabell57[],3,FALSE))^G48 ->  | J48: Värmland | K48: 1.106544149 | L48: 0.003901505711
G49: 0 | H49: =E49*B49*(1+VLOOKUP(C49,Tabell43[],3,FALSE))^G49+E49*(1-B49)*(1+VLOOKUP(D49,Tabell57[],3,FALSE))^G49 ->  | J49: Örebro | K49: 1.192412468 | L49: 0.006791362763
G50: 0 | H50: =E50*B50*(1+VLOOKUP(C50,Tabell43[],3,FALSE))^G50+E50*(1-B50)*(1+VLOOKUP(D50,Tabell57[],3,FALSE))^G50 ->  | J50: Västmanland | K50: 1.244079001 | L50: 0.008435204379
G51: 0 | H51: =E51*B51*(1+VLOOKUP(C51,Tabell43[],3,FALSE))^G51+E51*(1-B51)*(1+VLOOKUP(D51,Tabell57[],3,FALSE))^G51 ->  | J51: Dalarna | K51: 1.155436928 | L51: 0.005572335907
G52: 0 | H52: =E52*B52*(1+VLOOKUP(C52,Tabell43[],3,FALSE))^G52+E52*(1-B52)*(1+VLOOKUP(D52,Tabell57[],3,FALSE))^G52 ->  | J52: Gävleborg | K52: 1.1328571 | L52: 0.004809329741
G53: 0 | H53: =E53*B53*(1+VLOOKUP(C53,Tabell43[],3,FALSE))^G53+E53*(1-B53)*(1+VLOOKUP(D53,Tabell57[],3,FALSE))^G53 ->  | J53: Västernorrland | K53: 1.089560717 | L53: 0.003304470947
G54: 0 | H54: =E54*B54*(1+VLOOKUP(C54,Tabell43[],3,FALSE))^G54+E54*(1-B54)*(1+VLOOKUP(D54,Tabell57[],3,FALSE))^G54 ->  | J54: Jämtland | K54: 1.126612975 | L54: 0.00459574992
G55: 0 | H55: =E55*B55*(1+VLOOKUP(C55,Tabell43[],3,FALSE))^G55+E55*(1-B55)*(1+VLOOKUP(D55,Tabell57[],3,FALSE))^G55 ->  | J55: Västerbotten | K55: 1.21273541 | L55: 0.007445987507
G56: 0 | H56: =E56*B56*(1+VLOOKUP(C56,Tabell43[],3,FALSE))^G56+E56*(1-B56)*(1+VLOOKUP(D56,Tabell57[],3,FALSE))^G56 ->  | J56: Norrbotten | K56: 1.08606457 | L56: 0.003180457581
G57: 0 | H57: =E57*B57*(1+VLOOKUP(C57,Tabell43[],3,FALSE))^G57+E57*(1-B57)*(1+VLOOKUP(D57,Tabell57[],3,FALSE))^G57 ->  | J57: Riket | K57: 1.231451632 | L57: 0.008039593896
G58: 0 | H58: =E58*B58*(1+VLOOKUP(C58,Tabell43[],3,FALSE))^G58+E58*(1-B58)*(1+VLOOKUP(D58,Tabell57[],3,FALSE))^G58 -> 
G59: 0 | H59: =E59*B59*(1+VLOOKUP(C59,Tabell43[],3,FALSE))^G59+E59*(1-B59)*(1+VLOOKUP(D59,Tabell57[],3,FALSE))^G59 -> 
G60: 0 | H60: =E60*B60*(1+VLOOKUP(C60,Tabell43[],3,FALSE))^G60+E60*(1-B60)*(1+VLOOKUP(D60,Tabell57[],3,FALSE))^G60 -> 
G61: 0 | H61: =E61*B61*(1+VLOOKUP(C61,Tabell43[],3,FALSE))^G61+E61*(1-B61)*(1+VLOOKUP(D61,Tabell57[],3,FALSE))^G61 -> 
G62: 0 | H62: =E62*B62*(1+VLOOKUP(C62,Tabell43[],3,FALSE))^G62+E62*(1-B62)*(1+VLOOKUP(D62,Tabell57[],3,FALSE))^G62 -> 
G63: 0 | H63: =E63*B63*(1+VLOOKUP(C63,Tabell43[],3,FALSE))^G63+E63*(1-B63)*(1+VLOOKUP(D63,Tabell57[],3,FALSE))^G63 -> 
G64: 0 | H64: =E64*B64*(1+VLOOKUP(C64,Tabell43[],3,FALSE))^G64+E64*(1-B64)*(1+VLOOKUP(D64,Tabell57[],3,FALSE))^G64 -> 
G65: 0 | H65: =E65*B65*(1+VLOOKUP(C65,Tabell43[],3,FALSE))^G65+E65*(1-B65)*(1+VLOOKUP(D65,Tabell57[],3,FALSE))^G65 -> 
G66: 0 | H66: =E66*B66*(1+VLOOKUP(C66,Tabell43[],3,FALSE))^G66+E66*(1-B66)*(1+VLOOKUP(D66,Tabell57[],3,FALSE))^G66 -> 
G67: 0 | H67: =E67*B67*(1+VLOOKUP(C67,Tabell43[],3,FALSE))^G67+E67*(1-B67)*(1+VLOOKUP(D67,Tabell57[],3,FALSE))^G67 -> 
G68: 0 | H68: =E68*B68*(1+VLOOKUP(C68,Tabell43[],3,FALSE))^G68+E68*(1-B68)*(1+VLOOKUP(D68,Tabell57[],3,FALSE))^G68 -> 
G69: 0 | H69: =E69*B69*(1+VLOOKUP(C69,Tabell43[],3,FALSE))^G69+E69*(1-B69)*(1+VLOOKUP(D69,Tabell57[],3,FALSE))^G69 -> 
G70: 0 | H70: =E70*B70*(1+VLOOKUP(C70,Tabell43[],3,FALSE))^G70+E70*(1-B70)*(1+VLOOKUP(D70,Tabell57[],3,FALSE))^G70 -> 
G71: 0 | H71: =E71*B71*(1+VLOOKUP(C71,Tabell43[],3,FALSE))^G71+E71*(1-B71)*(1+VLOOKUP(D71,Tabell57[],3,FALSE))^G71 -> 
G72: 0 | H72: =E72*B72*(1+VLOOKUP(C72,Tabell43[],3,FALSE))^G72+E72*(1-B72)*(1+VLOOKUP(D72,Tabell57[],3,FALSE))^G72 -> 
G73: 0 | H73: =E73*B73*(1+VLOOKUP(C73,Tabell43[],3,FALSE))^G73+E73*(1-B73)*(1+VLOOKUP(D73,Tabell57[],3,FALSE))^G73 -> 
G74: 0 | H74: =E74*B74*(1+VLOOKUP(C74,Tabell43[],3,FALSE))^G74+E74*(1-B74)*(1+VLOOKUP(D74,Tabell57[],3,FALSE))^G74 -> 
G75: 0 | H75: =E75*B75*(1+VLOOKUP(C75,Tabell43[],3,FALSE))^G75+E75*(1-B75)*(1+VLOOKUP(D75,Tabell57[],3,FALSE))^G75 -> 

Sheet Hastighet
D1: Hastigheter före | K1: Konstant i AC ATK-formel | U1: Hastighet efter
D2: -med ATK beror på vägkategori | W2: Medelhastighet km/tim | Z2: Stopp/km
A3: Vägtyp | B3: Skyltad hastighet | C3: ATK före | D3: alt nr | E3: Vpb | F3: Vlb | G3: Vlbs | H3: lb rel | I3: lbs rel | L3: A | S3: Vägtyp | T3: Skyltad hastighet före | U3: Skyltad hastighet efter | W3: Vpb | X3: Vlbu | Y3: Vlbs
A4: GIF | B4: 50 | C4: Nej | D4: 1 | E4: =E28 -> 49.26315789 | F4: =F28 -> 49.26315789 | G4: =G28 -> 49.26315789 | H4: =Tabell1[[#This Row],[Vlb]]/Tabell1[[#This Row],[Vpb]] -> 1 | I4: =Tabell1[[#This Row],[Vlbs]]/Tabell1[[#This Row],[Vpb]] -> 1 | L4: pb | M4: lb | N4: lbs | S4: GIF | T4: 50 | U4: 40 | V4: 1 | W4: =E4+S28 -> 47.43315789 | X4: =F4+T28 -> 47.43315789 | Y4: =G4+U28 -> 47.43315789 | Z4: 0.1
B5: 50 | C5: Ja | D5: 2 | E5: =E4*L6+(1-L6)*($B$4-10) -> 46.05192674 | F5: =F4*M6+(1-M6)*($B$4-10) -> 46.05192674 | G5: =G4*N6+(1-N6)*($B$4-10) -> 46.05192674 | H5: =Tabell1[[#This Row],[Vlb]]/Tabell1[[#This Row],[Vpb]] -> 1 | I5: =Tabell1[[#This Row],[Vlbs]]/Tabell1[[#This Row],[Vpb]] -> 1 | K5: 40 | L5: =+L6 -> 0.653333 | M5: =+M6 -> 0.653333 | N5: =+N6 -> 0.653333 | T5: 50 | U5: 40ATK | V5: 2 | W5: =D75 -> 41.38965735 | X5: =E75 -> 41.38965735 | Y5: =F75 -> 41.38965735 | Z5: 0.1
B6: 70 | C6: Nej | D6: 3 | E6: =E25 -> 68.94202899 | F6: =F25 -> 68.46715328 | G6: =G25 -> 67.98529412 | H6: =Tabell1[[#This Row],[Vlb]]/Tabell1[[#This Row],[Vpb]] -> 0.9931119564 | I6: =Tabell1[[#This Row],[Vlbs]]/Tabell1[[#This Row],[Vpb]] -> 0.9861226181 | K6: 50 | L6: 0.653333 | M6: 0.653333 | N6: 0.653333 | T6: 50ATK | U6: 40ATK | V6: 3 | W6: =D72 -> 39.6061707 | X6: =E72 -> 39.6061707 | Y6: =F72 -> 39.6061707 | Z6: 0.05
B7: 70 | C7: Ja | D7: 4 | E7: =E6*L8+(1-L8)*($B$6-10) -> 65.97327536 | F7: =F6*M8+(1-M8)*($B$6-10) -> 66.00321168 | G7: 65.66157353 | H7: =Tabell1[[#This Row],[Vlb]]/Tabell1[[#This Row],[Vpb]] -> 1.000453764 | I7: =Tabell1[[#This Row],[Vlbs]]/Tabell1[[#This Row],[Vpb]] -> 0.9952753318 | K7: 60 | L7: 0.626 | M7: 0.634 | N7: 0.634 | T7: 70 | U7: 60 | V7: 4 | W7: =E6+S29 -> 66.37702899 | X7: =F6+T29 -> 66.60215328 | Y7: =G6+U29 -> 66.57029412 | Z7: 0.05
A8: 2kf | B8: 70 | C8: Nej | D8: 5 | E8: =M29 -> 74.24915825 | F8: =N29 -> 73.24914676 | G8: =O29 -> 71.98611111 | H8: =Tabell1[[#This Row],[Vlb]]/Tabell1[[#This Row],[Vpb]] -> 0.9865316791 | I8: =Tabell1[[#This Row],[Vlbs]]/Tabell1[[#This Row],[Vpb]] -> 0.9695209051 | K8: 70 | L8: 0.668 | M8: 0.709 | N8: 0.709 | T8: 70 | U8: 60ATK | V8: 5 | W8: =D82 -> 60.25202014 | X8: =E82 -> 60.52576518 | Y8: 60.50556647 | Z8: 0.05
B9: 70 | C9: Ja | D9: 6 | E9: =E8*L8+(1-L8)*($B$8-10) -> 69.51843771 | F9: =F8*M8+(1-M8)*($B$8-10) -> 69.39364505 | G9: =G8*N8+(1-N8)*($B$8-10) -> 68.49815278 | H9: =Tabell1[[#This Row],[Vlb]]/Tabell1[[#This Row],[Vpb]] -> 0.9982048984 | I9: =Tabell1[[#This Row],[Vlbs]]/Tabell1[[#This Row],[Vpb]] -> 0.9853235348 | K9: 80 | L9: 0.677 | M9: 0.722 | N9: 0.761 | T9: 70ATK | U9: 60ATK | V9: 6 | W9: =AVERAGE(D78:D79) -> 58.8708571 | X9: =AVERAGE(E78:E79) -> 59.47313673 | Y9: =AVERAGE(F78:F79) -> 59.5382523 | Z9: 0.05
B10: 80 | C10: Nej | E10: =M27 -> 83.24924925 | F10: =N27 -> 81.24923077 | G10: =O27 -> 78.98734177 | H10: =Tabell1[[#This Row],[Vlb]]/Tabell1[[#This Row],[Vpb]] -> 0.9759755373 | I10: =Tabell1[[#This Row],[Vlbs]]/Tabell1[[#This Row],[Vpb]] -> 0.9488054545 | K10: 90 | L10: 0.641957 | M10: 0.873 | N10: 0.896 | S10: 2kf | T10: 70 | U10: 60 | V10: 7 | W10: =E8+S29 -> 71.68415825 | X10: =F8+T29 -> 71.38414676 | Y10: =G8+U29 -> 70.57111111 | Z10: 0.02
B11: 80 | C11: Ja | E11: =E10*L9+(1-L9)*($B$10-10) -> 78.96974174 | F11: =F10*M9+(1-M9)*($B$10-10) -> 78.12194462 | G11: =G10*N9+(1-N9)*($B$10-10) -> 76.83936709 | H11: =Tabell1[[#This Row],[Vlb]]/Tabell1[[#This Row],[Vpb]] -> 0.9892642789 | I11: =Tabell1[[#This Row],[Vlbs]]/Tabell1[[#This Row],[Vpb]] -> 0.9730228996 | K11: 100 | L11: 0.75 | M11: 0.899 | N11: 0.905 | T11: 70 | U11: 60ATK | V11: 8 | W11: =D104 -> 63.57428306 | X11: =E104 -> 63.55754904 | Y11: =F104 -> 63.04208444 | Z11: 0.02
B12: 90 | C12: Nej | D12: 7 | E12: =M25 -> 89.24929972 | F12: =N25 -> 84.74926254 | G12: =O25 -> 79.9875 | H12: =Tabell1[[#This Row],[Vlb]]/Tabell1[[#This Row],[Vpb]] -> 0.9495790197 | I12: =Tabell1[[#This Row],[Vlbs]]/Tabell1[[#This Row],[Vpb]] -> 0.8962255194 | K12: 110 | L12: =+L11 -> 0.75 | M12: =+M11 -> 0.899 | N12: =+N11 -> 0.905 | T12: 70ATK | U12: 60ATK | V12: 9 | W12: =D107 -> 58.93314627 | X12: =E107 -> 59.75708727 | Y12: 60.04238727 | Z12: 0.02
B13: 90 | C13: Ja | D13: 8 | E13: =E12*L10+(1-L10)*($B$12-10) -> 85.9376527 | F13: =F12*M10+(1-M10)*($B$12-10) -> 84.14610619 | G13: =G12*N10+(1-N10)*($B$12-10) -> 79.9888 | H13: =Tabell1[[#This Row],[Vlb]]/Tabell1[[#This Row],[Vpb]] -> 0.9791529504 | I13: =Tabell1[[#This Row],[Vlbs]]/Tabell1[[#This Row],[Vpb]] -> 0.9307771098 | T13: 90 | U13: 80 | V13: 10 | W13: =E12+S30 -> 85.94929972 | X13: =F12+T30 -> 82.84926254 | Y13: =G12+U30 -> 78.9875 | Z13: 0.02
B14: 100 | C14: Nej | D14: 9 | E14: =M23 -> 95.4973822 | F14: =N23 -> 89.4972067 | G14: =O23 -> 80.98765432 | H14: =Tabell1[[#This Row],[Vlb]]/Tabell1[[#This Row],[Vpb]] -> 0.9371692149 | I14: =Tabell1[[#This Row],[Vlbs]]/Tabell1[[#This Row],[Vpb]] -> 0.8480615118 | K14: Vatk = A*V+(1-A)*(HG-10) om V>=HG-10, för lb 72 om HG>=90 | T14: 90 | U14: 80ATK | V14: 11 | W14: =D91 -> 80.79767591 | X14: =E91 -> 79.27716755 | Y14: =F91 -> 76.8394875 | Z14: 0.02
B15: 100 | C15: Ja | D15: 10 | E15: =E14*L11+(1-L11)*($B$14-10) -> 94.12303665 | F15: =F14*M11+(1-M11)*($B$14-10) -> 89.54798883 | G15: =G14*N11+(1-N11)*($B$14-10) -> 81.84382716 | H15: =Tabell1[[#This Row],[Vlb]]/Tabell1[[#This Row],[Vpb]] -> 0.9513929003 | I15: =Tabell1[[#This Row],[Vlbs]]/Tabell1[[#This Row],[Vpb]] -> 0.8695408698 | K15: Vatk = V om V<HG-10, för lb 72 om HG>=90 | T15: 90ATK | U15: 80ATK | V15: 12 | W15: =AVERAGE(D87:D88) -> 79.25753934 | X15: =AVERAGE(E87:E88) -> 79.80825419 | Y15: =AVERAGE(F87:F88) -> 77.82734401 | Z15: 0.02
A16: MLV | B16: 90 | C16: Nej | D16: 11 | E16: =R46 -> 87.6278527 | F16: =S46 -> 82.59462062 | G16: 78.41376762 | H16: =Tabell1[[#This Row],[Vlb]]/Tabell1[[#This Row],[Vpb]] -> 0.9425612757 | I16: =Tabell1[[#This Row],[Vlbs]]/Tabell1[[#This Row],[Vpb]] -> 0.8948498133 | T16: 100 | U16: 80 | V16: 13 | W16: =E14+S31 -> 90.2473822 | X16: =F14+T31 -> 85.7472067 | Y16: =G14+U31 -> 79.73765432 | Z16: 0.02
B17: 90 | C17: Ja | D17: 12 | E17: =E16*L10+(1-L10)*($B$16-10) -> 84.89675343 | F17: =F16*M10+(1-M10)*($B$16-10) -> 82.2651038 | G17: =G16*N10+(1-N10)*($B$16-10) -> 78.57873579 | H17: =Tabell1[[#This Row],[Vlb]]/Tabell1[[#This Row],[Vpb]] -> 0.9690017636 | I17: =Tabell1[[#This Row],[Vlbs]]/Tabell1[[#This Row],[Vpb]] -> 0.9255799852 | T17: 100ATK | U17: 80ATK | V17: 14 | W17: =W16*L9+(1-L9)*($K$9-10) -> 83.70747775 | X17: =X16*M9+(1-M9)*($K$9-10) -> 81.36948324 | Y17: =Y16*N9+(1-N9)*($K$9-10) -> 77.41035494 | Z17: 0.02
B18: 100 | C18: Nej | E18: =R56 -> 95.11646597 | F18: =S56 -> 87.80525178 | G18: =T56 -> 81.89759956 | H18: =Tabell1[[#This Row],[Vlb]]/Tabell1[[#This Row],[Vpb]] -> 0.923134085 | I18: =Tabell1[[#This Row],[Vlbs]]/Tabell1[[#This Row],[Vpb]] -> 0.8610244159 | S18: MLV | T18: 90 | U18: 100 | V18: 15 | W18: =E16+S34 -> 90.0278527 | X18: =F16+T34 -> 84.49462062 | Y18: =G16+U34 -> 78.41376762 | Z18: 0.02
B19: 110 | C19: Nej | D19: 13 | E19: =D64 -> 104.5 | F19: =E64 -> 92 | G19: =F64 -> 83.5 | H19: =Tabell1[[#This Row],[Vlb]]/Tabell1[[#This Row],[Vpb]] -> 0.8803827751 | I19: =Tabell1[[#This Row],[Vlbs]]/Tabell1[[#This Row],[Vpb]] -> 0.7990430622 | T19: 90ATK | U19: 100ATK | V19: 16 | W19: =W18*L11+(1-L11)*($K$11-10) -> 90.02088952 | X19: =X18*M11+(1-M11)*($K$11-10) -> 85.05066394 | Y19: =Y18*N11+(1-N11)*($K$11-10) -> 79.5144597 | Z19: 0.02
A20: MV | B20: 110 | C20: Nej | D20: 14 | E20: =J67 -> 109 | F20: =K67 -> 93 | G20: 84.5 | H20: =Tabell1[[#This Row],[Vlb]]/Tabell1[[#This Row],[Vpb]] -> 0.8532110092 | I20: =Tabell1[[#This Row],[Vlbs]]/Tabell1[[#This Row],[Vpb]] -> 0.7752293578 | J20: 2kf land | M20: 2 kf land schablon | T20: 110 | U20: 100 | V20: 17 | W20: =E19+S32 -> 102.2 | X20: 92 | Y20: 83 | Z20: 0.02
I21: BP1 150 Normal | J21: Pb | K21: Lb | L21: Lbs | M21: Pb | N21: Lb | O21: Lbs | S21: MV | T21: 110 | U21: 120 | V21: 18 | W21: 112.7 | X21: 96.2 | Y21: 84.5 | Z21: 0.02
B22: 2kf GIF | E22: 2kf GIF schablon | I22: 2 N 100 SK1 | J22: 96 | K22: 90 | L22: 82 | M22: =+M23/$M$23 -> 1 | N22: =+N23/$M$23 -> 0.9371692149 | O22: =+O23/$M$23 -> 0.8480615118
B23: Pb | C23: Lb | D23: Lbs | E23: Pb | F23: Lb | G23: Lbs | I23: 2N 100 SK2 | J23: 95 | K23: 89 | L23: 80 | M23: =1/(0.5/J22+0.5/J23) -> 95.4973822 | N23: =1/(0.5/K22+0.5/K23) -> 89.4972067 | O23: =1/(0.5/L22+0.5/L23) -> 80.98765432
B24: 71 | C24: 70 | D24: 69 | E24: =+E25/$E$25 -> 1 | F24: =+F25/$E$25 -> 0.9931119564 | G24: =+G25/$E$25 -> 0.9861226181 | I24: 2N 90 SK1 | J24: 89.5 | K24: 85 | L24: 81 | M24: =+M25/$M$25 -> 1 | N24: =+N25/$M$25 -> 0.9495790197 | O24: =+O25/$M$25 -> 0.8962255194
B25: 67 | C25: 67 | D25: 67 | E25: =1/(0.5/B24+0.5/B25) -> 68.94202899 | F25: =1/(0.5/C24+0.5/C25) -> 68.46715328 | G25: =1/(0.5/D24+0.5/D25) -> 67.98529412 | I25: 2N 90 SK2 | J25: 89 | K25: 84.5 | L25: 79 | M25: =1/(0.5/J24+0.5/J25) -> 89.24929972 | N25: =1/(0.5/K24+0.5/K25) -> 84.74926254 | O25: =1/(0.5/L24+0.5/L25) -> 79.9875
B26: 52 | C26: 52 | D26: 52 | I26: 2N 80 SK1 | J26: 83.5 | K26: 81.5 | L26: 80 | M26: =+M27/$M$27 -> 1 | N26: =+N27/$M$27 -> 0.9759755373 | O26: =+O27/$M$27 -> 0.9488054545 | AA26: Referens:
B27: 48 | C27: 48 | D27: 48 | E27: =+E28/E28 -> 1 | F27: =+F28/F28 -> 1 | G27: =+G28/G28 -> 1 | I27: 2N 80 SK2 | J27: 83 | K27: 81 | L27: 78 | M27: =1/(0.5/J26+0.5/J27) -> 83.24924925 | N27: =1/(0.5/K26+0.5/K27) -> 81.24923077 | O27: =1/(0.5/L26+0.5/L27) -> 78.98734177 | S27: pb | T27: lb | U27: lbs | AA27: VTI rapport 938 - Hastighetsflödessamband för svenska vägtyper
B28: 48 | C28: 48 | D28: 48 | E28: =1/(1/3/B27+1/3/B28+1/3/B26) -> 49.26315789 | F28: =1/(1/3/C27+1/3/C28+1/3/C26) -> 49.26315789 | G28: =1/(1/3/D27+1/3/D28+1/3/D26) -> 49.26315789 | I28: 2N 70 SK1 | J28: =D34 -> 74.5 | K28: =E34 -> 73.5 | L28: =F34 -> 73 | M28: =+M29/$M$29 -> 1 | N28: =+N29/$M$29 -> 0.9865316791 | O28: =+O29/$M$29 -> 0.9695209051 | Q28: 1 | R28: 50-40 | S28: -1.83 | T28: -1.83 | U28: -1.83 | AA28: Effektsamband för transportsystem
I29: 2N 70 SK2 | J29: =J34 -> 74 | K29: =K34 -> 73 | L29: =L34 -> 71 | M29: =1/(0.5/J28+0.5/J29) -> 74.24915825 | N29: =1/(0.5/K28+0.5/K29) -> 73.24914676 | O29: =1/(0.5/L28+0.5/L29) -> 71.98611111 | Q29: 2 | R29: 70-60 | S29: =(0.5*S28)+(0.5*S30) -> -2.565 | T29: =(0.5*T28)+(0.5*T30) -> -1.865 | U29: =(0.5*U28)+(0.5*U30) -> -1.415
B30: 70km/h, tvåfältsväg, 8-10m, siktklass 1 | H30: 70km/h, tvåfältsväg, 8-10m, siktklass 2 | Q30: 3 | R30: 90-80 | S30: -3.3 | T30: -1.9 | U30: -1
C31: Flöde | D31: Reshastighet km/h | I31: Flöde | J31: Reshastighet km/h | Q31: 4 | R31: 100-80 | S31: =(0.5*-5.4)+(0.5*-5.1) -> -5.25 | T31: =(0.5*-3.4)+(0.5*-4.1) -> -3.75 | U31: =(0.5*-2.6)+(0.5*0.1) -> -1.25
B32: Normal | C32: f/h | D32: Pb | E32: Lb | F32: Lbs | H32: Normal | I32: f/h | J32: Pb | K32: Lb | L32: Lbs | Q32: 5 | R32: 110-100 | S32: -2.3 | T32: 0 | U32: -0.5
B33: Brytpunkt 0 | C33: 0 | D33: 74.5 | E33: 73.5 | F33: 73 | H33: Brytpunkt 0 | I33: 0 | J33: 74 | K33: 73 | L33: 71 | Q33: 6 | R33: 110-120 | S33: 3.7 | T33: 3.2 | U33: 0
B34: Brytpunkt 1 | C34: 150 | D34: 74.5 | E34: 73.5 | F34: 73 | H34: Brytpunkt 1 | I34: 150 | J34: 74 | K34: 73 | L34: 71 | Q34: 7 | R34: 90-100 | S34: 2.4 | T34: 1.9 | U34: 0
B35: Brytpunkt 2 | C35: 600 | D35: 70.4 | E35: 70 | F35: 69.7 | H35: Brytpunkt 2 | I35: 550 | J35: 69.1 | K35: 68.7 | L35: 67.4
B36: Brytpunkt 3 | C36: 1200 | D36: 66.5 | E36: 66.3 | F36: 66.2 | H36: Brytpunkt 3 | I36: 1100 | J36: 64.2 | K36: 64.1 | L36: 63.4
B37: Brytpunkt 4 | C37: 1800 | D37: 63 | E37: 63 | F37: 63 | H37: Brytpunkt 4 | I37: 1700 | J37: 59.5 | K37: 59.5 | L37: 59.5
B38: Brytpunkt 5 | C38: 2160 | D38: 10 | E38: 10 | F38: 10 | H38: Brytpunkt 5 | I38: 2040 | J38: 10 | K38: 10 | L38: 10
B40: 90km/h, MLV, 2+1 kf, 13-14m, siktklass 1, andel tvåfält 40 % | H40: 90km/h, MLV, 2+1 kf, 13-14m, siktklass 2, andel tvåfält 40 %
C41: Flöde | D41: Reshastighet km/h | I41: Flöde | J41: Reshastighet km/h
C42: f/h | D42: Pb | E42: Lb | F42: Lbs | I42: f/h | J42: Pb | K42: Lb | L42: Lbs
B43: Brytpunkt 0 | C43: 0 | D43: 88.5 | E43: 83 | F43: 79.5 | H43: Brytpunkt 0 | I43: 0 | J43: 88 | K43: 82.5 | L43: 77.5 | O43: MLV 90 | R43: MLV 90 | S43: schablon
B44: Brytpunkt 1 | C44: 240 | D44: 88.5 | E44: 83 | F44: 79.5 | H44: Brytpunkt 1 | I44: 60 | J44: 88 | K44: 82.5 | L44: 77.5 | N44: Villkor | O44: Pb | P44: Lbs | Q44: Lbs | R44: Pb | S44: Lbs | T44: Lbs
B45: Brytpunkt 2 | C45: 750 | D45: 85.7 | E45: 81.5 | F45: 78.8 | H45: Brytpunkt 2 | I45: 500 | J45: 82 | K45: 81 | L45: 76.8 | N45: 40% 150 f/h | O45: =+D43 -> 88.5 | P45: =+E43 -> 83 | Q45: =+F43 -> 79.5 | R45: =+R46/R46 -> 1 | S45: =+S46/R46 -> 0.9425612757 | T45: =+T46/R46 -> 0.8948498133
B46: Brytpunkt 3 | C46: 1500 | D46: 81.5 | E46: 79.3 | F46: 78.1 | H46: Brytpunkt 3 | I46: 1500 | J46: 81 | K46: 78.8 | L46: 76.1 | N46: 20% 150 f/h | O46: =+J44+(J45-J44)*(150-60)/(500-60) -> 86.77272727 | P46: =+K44+(K45-K44)*(150-60)/(500-60) -> 82.19318182 | Q46: =+L44+(L45-L44)*(150-60)/(500-60) -> 77.35681818 | R46: =1/(0.5/O45+0.5/O46) -> 87.6278527 | S46: =1/(0.5/P45+0.5/P46) -> 82.59462062 | T46: =1/(0.5/Q45+0.5/Q46) -> 78.41376762
B47: Brytpunkt 4 | C47: 1550 | D47: 78.1 | E47: 78.1 | F47: 78.1 | H47: Brytpunkt 4 | I47: 1550 | J47: 76.1 | K47: 76.1 | L47: 76.1
B48: Brytpunkt 5 | C48: 1860 | D48: 10 | E48: 10 | F48: 10 | H48: Brytpunkt 5 | I48: 1860 | J48: 10 | K48: 10 | L48: 10
B50: 100km/h, MLV, 2+1 kf, 13-14m, siktklass 1, andel tvåfält 40 % | H50: 100km/h, MLV, 2+1 kf, 13-14m, siktklass 1, andel tvåfält 20 %
C51: Flöde | D51: Reshastighet km/h | I51: Flöde | J51: Reshastighet km/h
C52: f/h | D52: Pb | E52: Lb | F52: Lbs | I52: f/h | J52: Pb | K52: Lb | L52: Lbs
B53: Brytpunkt 0 | C53: 0 | D53: 96 | E53: 88 | F53: 82 | H53: Brytpunkt 0 | I53: 0 | J53: 96 | K53: 88 | L53: 82 | O53: MLV 100 | R53: MLV 100 | S53: schablon
B54: Brytpunkt 1 | C54: 240 | D54: 96 | E54: 88 | F54: 82 | H54: Brytpunkt 1 | I54: 60 | J54: 96 | K54: 88 | L54: 82 | N54: Villkor | O54: Pb | P54: Lbs | Q54: Lbs | R54: Pb | S54: Lbs | T54: Lbs
B55: Brytpunkt 2 | C55: 750 | D55: 92.63964377 | E55: 86.1 | F55: 81 | H55: Brytpunkt 2 | I55: 500 | J55: 87.4397844 | K55: 86.1 | L55: 81 | N55: 40% 150 f/h | O55: =+D53 -> 96 | P55: =+E53 -> 88 | Q55: =+F53 -> 82 | R55: =+R56/R56 -> 1 | S55: =+S56/R56 -> 0.923134085 | T55: =+T56/R56 -> 0.8610244159
B56: Brytpunkt 3 | C56: 1500 | D56: 87.54970898 | E56: 83.5 | F56: 80 | H56: Brytpunkt 3 | I56: 1500 | J56: 81.41197654 | K56: 80.6 | L56: 79 | N56: 20% 150 f/h | O56: =+J54+(J55-J54)*(150-60)/(500-60) -> 94.24904681 | P56: =+K54+(K55-K54)*(150-60)/(500-60) -> 87.61136364 | Q56: =+L54+(L55-L54)*(150-60)/(500-60) -> 81.79545455 | R56: =1/(0.5/O55+0.5/O56) -> 95.11646597 | S56: =1/(0.5/P55+0.5/P56) -> 87.80525178 | T56: =1/(0.5/Q55+0.5/Q56) -> 81.89759956
B57: Brytpunkt 4 | C57: 1550 | D57: 79 | E57: 79 | F57: 79 | H57: Brytpunkt 4 | I57: 1550 | J57: 79 | K57: 79 | L57: 79
B58: Brytpunkt 5 | C58: 1860 | D58: 10 | E58: 10 | F58: 10 | H58: Brytpunkt 5 | I58: 1860 | J58: 10 | K58: 10 | L58: 10
B61: 110km/h, MML, 2+1 kf, 13-14m, siktklass 1, andel tvåfält 40%
C62: Flöde | D62: Reshastighet km/h
C63: f/h | D63: Pb | E63: Lb | F63: Lbs | I63: MV110 (3kf S1 Flöde 0-1872f/h)
B64: Brytpunkt 0 | C64: 0 | D64: 104.5 | E64: 92 | F64: 83.5 | I64: Flöde | J64: Reshastighet km/h
B65: Brytpunkt 1 | C65: 240 | D65: 104.5 | E65: 92 | F65: 83.5 | I65: f/h | J65: Pb | K65: Lb | L65: Lbs
B66: Brytpunkt 2 | C66: 750 | D66: 100.4 | E66: 90 | F66: 82.5 | J66: =+J67/$J$67 -> 1 | K66: =+K67/$J$67 -> 0.8532110092 | L66: =+L67/$J$67 -> 0.7752293578
B67: Brytpunkt 3 | C67: 1500 | D67: 93.4 | E67: 86.9 | F67: 81.5 | H67: Brytpunkt 1 | I67: 1872 | J67: 109 | K67: 93 | L67: 84.5
B68: Brytpunkt 4 | C68: 1550 | D68: 79 | E68: 79 | F68: 79
B69: Brytpunkt 5 | C69: 1860 | D69: 10 | E69: 10 | F69: 10
C70: Medelhastighet
B71: GIF50ATK | C71: ERL | D71: =T75*L6+(1-L6)*40 -> 46.53333 | E71: =U75*M6+(1-M6)*40 -> 46.53333 | F71: =V75*N6+(1-N6)*40 -> 46.53333 | T71: Medelhastighet
B72: - 40ATK | D72: =(D71+S28)*L5+(1-L5)*($K5-10) -> 39.6061707 | E72: =(E71+T28)*M5+(1-M5)*($K5-10) -> 39.6061707 | F72: =(F71+U28)*N5+(1-N5)*($K5-10) -> 39.6061707 | M72: pb | N72: lb | O72: lbs | P72: lb rel | Q72: lbs rel | R72: "Före" | T72: Vpb | U72: Vlbu | V72: Vlbs
B73: GIF 50 | D73: =E4 -> 49.26315789 | E73: =F4 -> 49.26315789 | F73: =G4 -> 49.26315789 | G73: 0.1 | H73: 50 | I73: 50 | J73: 50 | M73: 0.86 | N73: 0.06 | O73: 0.08 | P73: =F27 -> 1 | Q73: =G27 -> 1 | R73: GIF50ATK | S73: E | T73: =($M73+$N73/$P73+$O73/$Q73)*(50) -> 50 | U73: =P73*$T73 -> 50 | V73: =Q73*$T73 -> 50
B74: -40 | D74: =D73+S28 -> 47.43315789 | E74: =E73+T28 -> 47.43315789 | F74: =F73+U28 -> 47.43315789 | G74: 0.1 | H74: 47 | I74: 47 | J74: 47 | M74: 0.92 | N74: 0.04 | O74: 0.04 | P74: =P73 -> 1 | Q74: =Q73 -> 1 | S74: R | T74: =($M74+$N74/$P74+$O74/$Q74)*(50) -> 50 | U74: 50 | V74: 50
B75: -40ATK | D75: =D74*L5+(1-L5)*($K5-10) -> 41.38965735 | E75: =E74*M5+(1-M5)*($K5-10) -> 41.38965735 | F75: =F74*N5+(1-N5)*($K5-10) -> 41.38965735 | M75: 0.92 | N75: 0.04 | O75: 0.04 | P75: =P74 -> 1 | Q75: =Q74 -> 1 | S75: L | T75: =($M75+$N75/$P75+$O75/$Q75)*(50) -> 50 | U75: 50 | V75: 50
B76: GIF70ATK | C76: E | D76: =T76*L8+(1-L8)*($K8-10) -> 66.75210219 | E76: =U76*M8+(1-M8)*($K8-10) -> 66.82414689 | F76: =V76*N8+(1-N8)*($K8-10) -> 66.47673115 | M76: 0.86 | N76: 0.06 | O76: 0.08 | P76: =F24 -> 0.9931119564 | Q76: =G24 -> 0.9861226181 | R76: 70ATK | S76: E | T76: =($M76+$N76/$P76+$O76/$Q76)*(70) -> 70.10793741 | U76: 69.62503088 | V76: 69.13502278
C77: RL | D77: =T77*L8+(1-L8)*($K8-10) -> 66.71929428 | E77: =U77*M8+(1-M8)*($K8-10) -> 66.78956518 | F77: =V77*N8+(1-N8)*($K8-10) -> 66.44239282 | M77: 0.92 | N77: 0.04 | O77: 0.04 | P77: =P76 -> 0.9931119564 | Q77: =Q76 -> 0.9861226181 | S77: R | T77: =($M77+$N77/$P77+$O77/$Q77)*(70) -> 70.05882378 | U77: 69.57625554 | V77: 69.08659072
B78: -60ATK | C78: E | D78: =(D76+S29)*L7+(1-L7)*($K7-10) -> 58.88112597 | E78: =(E76+T29)*M7+(1-M7)*($K7-10) -> 59.48409913 | F78: =(F76+U29)*N7+(1-N7)*($K7-10) -> 59.54913755 | M78: 0.92 | N78: 0.04 | O78: 0.04 | P78: =P77 -> 0.9931119564 | Q78: =Q77 -> 0.9861226181 | S78: L | T78: =($M78+$N78/$P78+$O78/$Q78)*(70) -> 70.05882378 | U78: 69.57625554 | V78: 69.08659072
C79: RL | D79: =(D77+S29)*L7+(1-L7)*($K7-10) -> 58.86058822 | E79: =(E77+T29)*M7+(1-M7)*($K7-10) -> 59.46217432 | F79: =(F77+U29)*N7+(1-N7)*($K7-10) -> 59.52736705 | M79: 0.86 | N79: 0.06 | O79: 0.08 | P79: =N24 -> 0.9495790197 | Q79: =O24 -> 0.8962255194 | R79: GIF 90ATK | S79: E | T79: =($M79+$N79/$P79+$O79/$Q79)*(90) -> 91.12042277 | U79: 86.52604173 | V79: 81.66444822
B80: GIF 70 | D80: =E6 -> 68.94202899 | E80: =F6 -> 68.46715328 | F80: =G6 -> 67.98529412 | G80: 0.05 | H80: 70 | I80: 70 | J80: 69 | M80: 0.92 | N80: 0.04 | O80: 0.04 | P80: =P79 -> 0.9495790197 | Q80: =Q79 -> 0.8962255194 | S80: RL | T80: =($M80+$N80/$P80+$O80/$Q80)*(90) -> 90.6079998 | U80: 86.03945563 | V80: 81.20520169
B81: -60 | D81: =D80+S29 -> 66.37702899 | E81: =E80+T29 -> 66.60215328 | F81: =F80+U29 -> 66.57029412 | G81: 0.05 | H81: 66 | I81: 66 | J81: 65 | M81: 0.86 | N81: 0.06 | O81: 0.08 | P81: =N22 -> 0.9371692149 | Q81: =O22 -> 0.8480615118 | R81: 100ATK | S81: E | T81: =($M81+$N81/$P81+$O81/$Q81)*(100) -> 101.835537 | U81: 95.43713022 | V81: 86.36279942
B82: -60ATK | D82: =D81*L7+(1-L7)*($K7-10) -> 60.25202014 | E82: =E81*M7+(1-M7)*($K7-10) -> 60.52576518 | F82: =F81*N7+(1-N7)*($K7-10) -> 60.50556647 | M82: 0.92 | N82: 0.04 | O82: 0.04 | P82: =P81 -> 0.9371692149 | Q82: =Q81 -> 0.8480615118 | S82: RL | T82: =($M82+$N82/$P82+$O82/$Q82)*(100) -> 100.9848116 | U82: 94.63985664 | V82: 85.64133203
B83: 2kf 80 | D83: =M27 -> 83.24924925 | E83: =N27 -> 81.24923077 | F83: =O27 -> 78.98734177 | G83: 0.02 | H83: 87 | I83: 84 | J83: 82 | M83: 0.86 | N83: 0.06 | O83: 0.08 | P83: =(E34+K34)/($D$34+$J$34) -> 0.9865319865 | Q83: =(F34+L34)/($D$34+$J$34) -> 0.9696969697 | R83: 70ATK | S83: E | T83: =($M83+$N83/$P83+$O83/$Q83)*(70) -> 70.23233788 | U83: 70.23233788 | V83: 70.23233788
B84: -ATK | D84: =D83*L9+(1-L9)*($K9-10) -> 78.96974174 | E84: =E83*M9+(1-M9)*($K9-10) -> 78.12194462 | F84: =F83*N9+(1-N9)*($K9-10) -> 76.83936709 | M84: 0.92 | N84: 0.04 | O84: 0.04 | P84: =P83 -> 0.9865319865 | Q84: =Q83 -> 0.9696969697 | S84: R | T84: 70.12572526 | U84: 70.12572526 | V84: 70.12572526
B85: 2kf90ATK | C85: E | D85: =T79*L10+(1-L10)*($K10-10) -> 87.13883324 | E85: =U79*M10+(1-M10)*($K10-10) -> 85.69723443 | F85: =V79*N10+(1-N10)*($K10-10) -> 81.49134561 | M85: 0.92 | N85: 0.04 | O85: 0.04 | P85: =P84 -> 0.9865319865 | Q85: =Q84 -> 0.9696969697 | S85: L | T85: 70.12572526 | U85: 70.12572526 | V85: 70.12572526
C86: RL | D86: =T80*L10+(1-L10)*($K10-10) -> 86.80987973 | E86: =U80*M10+(1-M10)*($K10-10) -> 85.27244477 | F86: =V80*N10+(1-N10)*($K10-10) -> 81.07986071
B87: - 80ATK | C87: E | D87: =(D85+S30)*L9+(1-L9)*($K9-10) -> 79.3688901 | E87: =(E85+T30)*M9+(1-M9)*($K9-10) -> 79.96160326 | F87: =(F85+U30)*N9+(1-N9)*($K9-10) -> 77.98391401
C88: RL | D88: =(D86+S30)*L9+(1-L9)*($K9-10) -> 79.14618858 | E88: =(E86+T30)*M9+(1-M9)*($K9-10) -> 79.65490512 | F88: =(F86+U30)*N9+(1-N9)*($K9-10) -> 77.670774
B89: 2kf 90 | D89: =M25 -> 89.24929972 | E89: =N25 -> 84.74926254 | F89: =O25 -> 79.9875 | G89: 0.02 | H89: 93 | I89: 87 | J89: 82
B90: -80 | D90: =D89+S30 -> 85.94929972 | E90: =E89+T30 -> 82.84926254 | F90: =F89+U30 -> 78.9875 | G90: 0.02 | H90: 89 | I90: 84 | J90: 81
B91: -80ATK | D91: =D90*L9+(1-L9)*($K9-10) -> 80.79767591 | E91: =E90*M9+(1-M9)*($K9-10) -> 79.27716755 | F91: =F90*N9+(1-N9)*($K9-10) -> 76.8394875
B92: 2kf100ATK | C92: E | D92: =T81*L11+(1-L11)*($K11-10) -> 98.87665272 | E92: =U81*M11+(1-M11)*($K11-10) -> 94.88798007 | F92: =V81*N11+(1-N11)*($K11-10) -> 86.70833348
C93: RL | D93: =T82*L11+(1-L11)*($K11-10) -> 98.23860873 | E93: =U82*M11+(1-M11)*($K11-10) -> 94.17123112 | F93: =V82*N11+(1-N11)*($K11-10) -> 86.05540548
B94: - 80ATK | C94: E | D94: =(D92+S31)*L9+(1-L9)*($K9-10) -> 85.99524389 | E94: =(E92+T31)*M9+(1-M9)*($K9-10) -> 85.26162161 | F94: =(F92+U31)*N9+(1-N9)*($K9-10) -> 81.76379178
C95: RL | D95: =(D93+S31)*L9+(1-L9)*($K9-10) -> 85.56328811 | E95: =(E93+T31)*M9+(1-M9)*($K9-10) -> 84.74412887 | F95: =(F93+U31)*N9+(1-N9)*($K9-10) -> 81.26691357
B96: 2kf100 | D96: =M23 -> 95.4973822 | E96: =N23 -> 89.4972067 | F96: =O23 -> 80.98765432 | G96: 0.02 | H96: 100 | I96: 91 | J96: 83
B97: - 80 | D97: =D96+S31 -> 90.2473822 | E97: =E96+T31 -> 85.7472067 | F97: =F96+U31 -> 79.73765432 | G97: 0.02 | H97: 95 | I97: 88 | J97: 81
B98: - 80ATK | D98: =D97*L9+(1-L9)*($K9-10) -> 83.70747775 | E98: =E97*M9+(1-M9)*($K9-10) -> 81.36948324 | F98: =F97*N9+(1-N9)*($K9-10) -> 77.41035494
B99: MLV 100 | D99: =R56 -> 95.11646597 | E99: =S56 -> 87.80525178 | F99: =T56 -> 81.89759956 | G99: 0.02 | H99: 96 | I99: 88 | J99: 82
B100: MV110 | D100: =J67 -> 109 | E100: =K67 -> 93 | F100: =L67 -> 84.5 | G100: 0.02 | H100: 111 | I100: 93 | J100: 87
B102: 2kf70 | D102: =E8 -> 74.24915825 | E102: =F8 -> 73.24914676 | F102: 71.98611111
B103: -60 | D103: =D102+S29 -> 71.68415825 | E103: =E102+T29 -> 71.38414676 | F103: 70.57111111
B104: -60ATK | D104: =D103*L7+(1-L7)*($K7-10) -> 63.57428306 | E104: =E103*M7+(1-M7)*($K7-10) -> 63.55754904 | F104: =F103*N7+(1-N7)*($K7-10) -> 63.04208444
B105: 2kf70ATK | C105: E | D105: =T83*L8+(1-L8)*($K8-10) -> 66.83520171 | E105: =U83*M8+(1-M8)*($K8-10) -> 67.25472756 | F105: 67.25472756
C106: RL | D106: =T84*L8+(1-L8)*($K8-10) -> 66.76398447 | E106: =U84*M8+(1-M8)*($K8-10) -> 67.17913921 | F106: 67.17913921
B107: -60ATK | D107: =(D105+S29)*L7+(1-L7)*($K7-10) -> 58.93314627 | E107: =(E105+T29)*M7+(1-M7)*($K7-10) -> 59.75708727 | F107: =(F105+U29)*N7+(1-N7)*($K7-10) -> 60.04238727

Sheet Trafiksäkerhet
A2: Hastig- | B2: Typ | C2: Bredd/miljö | D2: Tot per Mapkm 2010 | H2: Korsninspåslag | U2: Uppdaterade potenser 2024-04-02
A3: hetsgräns | C3: m | D3: Dk | E3: SSk | M3: länk + nod result. | O3: Vföre | R3: Vrel | U3: Potensmodellen | V3: D | W3: SS
A4: 50 | B4: GIF | C4: Centrum | D4: 0.003671 | E4: =0.049619*D39 -> 0.0744285 | I4: Dk | J4: SSk | K4: Korsningspåslag | M4: Dk | N4: SSk | O4: Vpb | P4: Vlb | Q4: Vlbs | R4: lb | S4: lbs | U4: Landsbygd | V4: 5.9 | W4: 4.6
A5: 50 | B5: GIF | C5: Mellan | D5: 0.003105 | E5: =0.043057*D39 -> 0.0645855 | H5: 50 GIF | I5: =+AVERAGE(D4:D8)*V10 -> 0.002414622085 | J5: =+AVERAGE(E4:E8)*V11 -> 0.05335196689 | K5: 1.21 | L5: 1 | M5: =+I5*K5 -> 0.002921692723 | N5: =+K5*J5 -> 0.06455587994 | O5: =Hastighet!E28 -> 49.26315789 | P5: =Hastighet!F28 -> 49.26315789 | Q5: =Hastighet!G28 -> 49.26315789 | R5: =Hastighet!F27 -> 1 | S5: =Hastighet!G27 -> 1 | U5: Tätort | V5: 3.8 | W5: 2.6
A6: 50 | B6: GIF | C6: Ytter | D6: 0.002874 | E6: =0.04361*D39 -> 0.065415 | H6: - med ATK | L6: 2 | M6: =0.9*M5 -> 0.002629523451 | N6: =0.9*N5 -> 0.05810029195
A7: 50 | B7: stat, ej ML | C7: 6.7-7.9 | D7: 0.003859 | E7: =0.03841*D39 -> 0.057615 | H7: 70 GIF | I7: =+AVERAGE(D9:D10)*V10 -> 0.003086053301 | J7: =+AVERAGE(E9:E10)*V11 -> 0.04547745332 | K7: 1.32 | L7: 3 | M7: =+I7*K7 -> 0.004073590358 | N7: =+K7*J7 -> 0.06003023838 | O7: =Hastighet!E25 -> 68.94202899 | P7: =Hastighet!F25 -> 68.46715328 | Q7: =Hastighet!G25 -> 67.98529412 | R7: =Hastighet!F24 -> 0.9931119564 | S7: =Hastighet!G24 -> 0.9861226181 | U7: Formler
A8: 50 | B8: stat, ej ML | C8: 8-10 | D8: =D7 -> 0.003859 | E8: =E7 -> 0.057615 | H8: - med ATK | L8: 4 | M8: =0.9*M7 -> 0.003666231322 | N8: =0.9*N7 -> 0.05402721454 | U8: TS-EVA Excel-fil | V8: https://www.trafikverket.se/tseva
A9: 70 | B9: GIF | C9: Mellan | D9: 0.00459 | E9: =0.037296*D39 -> 0.055944 | H9: 70 2kf | I9: =+AVERAGE(D11:D12)*V10 -> 0.002875079728 | J9: =+AVERAGE(E11:E12)*V11 -> 0.04967768625 | K9: 1.32 | L9: 5 | M9: =+I9*K9 -> 0.003795105242 | N9: =+K9*J9 -> 0.06557454586 | O9: =Hastighet!M27 -> 83.24924925 | P9: =Hastighet!N27 -> 81.24923077 | Q9: =Hastighet!O27 -> 78.98734177 | R9: =Hastighet!N26 -> 0.9759755373 | S9: =Hastighet!O26 -> 0.9488054545 | U9: Riskmåttens förändring över tid 6.2.1.2 | V9: Effektsambandskatalogen
A10: 70 | B10: GIF | C10: Ytter | D10: 0.004289 | E10: =0.035365*D39 -> 0.0530475 | H10: - med ATK | L10: 6 | M10: =+M9*0.9 -> 0.003415594717 | N10: =+N9*0.9 -> 0.05901709127 | U10: Dödade minskar med 2% per år över tid (2010-2028) | V10: =0.98^('Beräkna ÅDT'!K1-V13) -> 0.6951353309
A11: 70 | B11: stat, ej ML | C11: 6.7-7.9 | D11: 0.005609 | E11: =0.038796*D38 -> 0.0659532 | H11: 90 2kf | I11: =+AVERAGE(D15:D16)*V10 -> 0.003194841981 | J11: =+AVERAGE(E15:E16)*V11 -> 0.03556543266 | K11: 1.13 | L11: 7 | M11: =+I11*K11 -> 0.003610171438 | N11: =+K11*J11 -> 0.04018893891 | O11: =Hastighet!M25 -> 89.24929972 | P11: =Hastighet!N25 -> 84.74926254 | Q11: =Hastighet!O25 -> 79.9875 | R11: =Hastighet!N24 -> 0.9495790197 | S11: =Hastighet!O24 -> 0.8962255194 | U11: Svårt skadade minskar med 1% per år över tid (2010-2028) | V11: =0.99^('Beräkna ÅDT'!K1-Trafiksäkerhet!V13) -> 0.8345137615
A12: 70 | B12: stat, ej ML | C12: 8-10 | D12: 0.002663 | E12: =0.031238*D38 -> 0.0531046 | H12: - med ATK | L12: 8 | M12: =0.95*M11 -> 0.003429662866 | N12: =0.95*N11 -> 0.03817949196
A13: 80 | B13: stat, ej ML | C13: 6.7-7.9 | D13: 0.004565781079 | E13: =0.0279408560118313*D38 -> 0.04749945522 | H13: 100 2kf | I13: =+AVERAGE(D17:D18)*V10 -> 0.003037741396 | J13: =+AVERAGE(E17:E18)*V11 -> 0.03137112477 | K13: 1.08 | L13: 9 | M13: =+I13*K13 -> 0.003280760708 | N13: =+K13*J13 -> 0.03388081475 | O13: =Hastighet!M23 -> 95.4973822 | P13: =Hastighet!N23 -> 89.4972067 | Q13: =Hastighet!O23 -> 80.98765432 | R13: =Hastighet!N22 -> 0.9371692149 | S13: =Hastighet!O22 -> 0.8480615118 | U13: Basår TS | V13: 2010
A14: 80 | B14: stat, ej ML | C14: 8-10 | D14: 0.002997273894 | E14: =0.0212449513616221*D38 -> 0.03611641731 | H14: - med ATK | L14: 10 | M14: =+M13 -> 0.003280760708 | N14: =+N13 -> 0.03388081475
A15: 90 | B15: stat, ej ML | C15: 6.7-7.9 | D15: 0.004237 | E15: =0.025133*D38 -> 0.0427261 | H15: 90 MLV | I15: =+AVERAGE(D15:D16)*V10 -> 0.003194841981 | J15: =+AVERAGE(E15:E16)*V11 -> 0.03556543266 | K15: 1.3 | L15: 11 | M15: =I15*K15 -> 0.004153294575 | N15: =J15*K15 -> 0.04623506246
A16: 90 | B16: stat, ej ML | C16: 8-10 | D16: 0.004955 | E16: =0.025006*D38 -> 0.0425102 | H16: - med ATK | L16: 12 | M16: =+M15 -> 0.004153294575 | N16: =N15 -> 0.04623506246
A17: 100 | B17: stat, ej ML | C17: 6.7-7.9 | D17: 0.004468 | E17: =0.015138*D38 -> 0.0257346 | H17: MLV 110 | I17: =D23*V10 -> 0.0008397234797 | J17: =E23*V11 -> 0.008790767963 | K17: 1.15 | L17: 13 | M17: =I17*K17 -> 0.0009656820016 | N17: =J17*L17 -> 0.1142799835 | O17: =Hastighet!E8 -> 74.24915825 | P17: =Hastighet!F8 -> 73.24914676 | Q17: =Hastighet!G8 -> 71.98611111 | R17: =Hastighet!H8 -> 0.9865316791 | S17: =Hastighet!I8 -> 0.9695209051
A18: 100 | B18: stat, ej ML | C18: 8-10 | D18: 0.004272 | E18: =0.029088*D38 -> 0.0494496 | H18: MV 110 | I18: =D21*V10 -> 0.0005011925735 | J18: =E21*V11 -> 0.007459384708 | K18: 1.05 | L18: 14 | M18: =I18*K18 -> 0.0005262522022 | N18: =J18*K18 -> 0.007832353944
A19: 100 | B19: MLV | C19: 13-14m | D19: 0.00042 | E19: =0.008611*D38 -> 0.0146387
A20: 100 | B20: 2+1 Räcke Gles | C20: 9-13m | D20: 0.0004050559337 | E20: =0.00827547133480904*D38 -> 0.01406830127
A21: 110 | B21: MV räcke | C21: 21,5m | D21: 0.000721 | E21: =0.005258*D38 -> 0.0089386
A22: 120 | B22: MV räcke | C22: <24,5 | D22: 0.000951 | E22: =0.022028*D38 -> 0.0374476
A23: 110 | B23: MLV | C23: 13-14 | D23: 0.001208 | E23: 0.010534
B37: Bortfallsfaktorer | C37: D | D37: SS | E37: LS | F37: EG
B38: Landsbygd | C38: 1 | D38: 1.7 | E38: 1.7 | F38: 7
B39: Tätort | C39: 1 | D39: 1.5 | E39: 1.5 | F39: 7

Sheet CO2
A1: CO2-utsläpp i gram per fordonskilometer enligt nivå 2028 totala utsläpp (biogena + fossila) enl metod i ASEK
A2: V | B2: Pb | D2: Lbu | F2: Lbs | S2: Från ASEK
B3: Landsbygd | C3: Tätort | D3: Landsbygd | E3: Tätort | F3: Landsbygd | G3: Tätort | S3: Personbil | T3: land | U3: tätort | W3: LBU | X3: land | Y3: tätort
A4: 30 | C4: 150.8883232 | E4: 489.242682 | G4: 914.508576 | S4: 2019-01-01 | T4: 173 | U4: 187 | W4: 2019-01-01 | X4: 634 | Y4: 642
A5: 31 | C5: 149.5354772 | E5: 485.641491 | G5: 907.9422689 | S5: 2028-01-01 | T5: =T4+((T6-T4)/11)*9 -> 115.7272727 | U5: =U4+((U6-U4)/11)*9 -> 124.8181818 | W5: 2028-01-01 | X5: =X4+((X6-X4)/11)*9 -> 444.1818182 | Y5: =Y4+((Y6-Y4)/11)*9 -> 449.7272727
A6: 32 | C6: 148.2167091 | E6: 482.1742628 | G6: 901.5052723 | S6: 2030-01-01 | T6: 103 | U6: 111 | W6: 2030-01-01 | X6: 402 | Y6: 407
A7: 33 | C7: 146.9320191 | E7: 478.8409974 | G7: 895.1975863 | S7: Lätt lastbil | W7: LBS
A8: 34 | C8: 145.6814072 | E8: 475.6416948 | G8: 889.0192109 | S8: 2019-01-01 | T8: 200 | U8: 183 | W8: 2019-01-01 | X8: 958 | Y8: 1062
A9: 35 | C9: 144.4648732 | E9: 472.576355 | G9: 882.970146 | S9: 2028-01-01 | T9: =T8+((T10-T8)/11)*9 -> 137 | U9: =U8+((U10-U8)/11)*9 -> 125.7272727 | W9: 2028-01-01 | X9: =X8+((X10-X8)/11)*9 -> 680.6363636 | Y9: =Y8+((Y10-Y8)/11)*9 -> 753.5454545
A10: 36 | C10: 143.2824173 | E10: 469.644978 | G10: 877.0503917 | S10: 2030-01-01 | T10: 123 | U10: 113 | W10: 2030-01-01 | X10: 619 | Y10: 685
A11: 37 | C11: 142.1340393 | E11: 466.8475638 | G11: 871.2599479 | S11: Snitt ungefär för lätta | T11: =T5*0.9+T9*0.1 -> 117.8545455 | U11: =U5*0.9+U9*0.1 -> 124.9090909
A12: 38 | C12: 141.0197394 | E12: 464.1841124 | G12: 865.5988147
A13: 39 | C13: 139.9395176 | E13: 461.6546238 | G13: 860.0669921
A14: 40 | C14: 138.8933737 | E14: 459.259098 | G14: 854.66448
A15: 41 | C15: 137.8813079 | E15: 456.997535 | G15: 849.3912785
A16: 42 | C16: 136.90332 | E16: 454.8699348 | G16: 844.2473875
A17: 43 | C17: 135.9594103 | E17: 452.8762974 | G17: 839.2328071
A18: 44 | C18: 135.0495785 | E18: 451.0166228 | G18: 834.3475373
A19: 45 | C19: 134.1738247 | E19: 449.290911 | G19: 829.591578
A20: 46 | C20: 133.332149 | E20: 447.699162 | G20: 824.9649293
A21: 47 | C21: 132.5245513 | E21: 446.2413758 | G21: 820.4675911
A22: 48 | C22: 131.7510316 | E22: 444.9175524 | G22: 816.0995635
A23: 49 | C23: 131.0115899 | E23: 443.7276918 | G23: 811.8608465
A24: 50 | C24: 130.3062263 | E24: 442.671794 | G24: 807.75144
A25: 51 | C25: 129.6349406 | E25: 441.749859 | G25: 803.7713441
A26: 52 | C26: 128.997733 | E26: 440.9618868 | G26: 799.9205587
A27: 53 | C27: 128.3946034 | E27: 440.3078774 | G27: 796.1990839
A28: 54 | C28: 127.8255519 | E28: 439.7878308 | G28: 792.6069197
A29: 55 | C29: 127.2905783 | E29: 439.401747 | G29: 789.144066
A30: 56 | C30: 126.7896828 | E30: 439.149626 | G30: 785.8105229
A31: 57 | C31: 126.3228653 | E31: 439.0314678 | G31: 782.6062903
A32: 58 | C32: 125.8901258 | E32: 439.0472724 | G32: 779.5313683
A33: 59 | C33: 125.4914644 | E33: 439.1970398 | G33: 776.5857569
A34: 60 | C34: 125.1268809 | E34: 439.48077 | G34: 773.769456
A35: 61 | C35: 124.7963755 | E35: 439.898463 | G35: 771.0824657
A36: 62 | C36: 124.4999481 | E36: 440.4501188 | G36: 768.5247859
A37: 63 | C37: 124.2375987 | E37: 441.1357374 | G37: 766.0964167
A38: 64 | C38: 124.0093274 | E38: 441.9553188 | G38: 763.7973581
A39: 65 | C39: 123.815134 | E39: 442.908863 | G39: 761.62761
A40: 66 | B40: 116.4445893 | C40: 123.6550187 | D40: 437.9590554 | E40: 443.99637 | F40: 687.5529768 | G40: 759.5871725
A41: 67 | B41: 116.3809292 | C41: 123.5289814 | D41: 439.1681393 | E41: 445.2178398 | F41: 685.2661362 | G41: 757.6760455
A42: 68 | B42: 116.3438097 | C42: 123.4370221 | D42: 440.6479248 | E42: 446.5732724 | F42: 683.3484432 | G42: 755.8942291
A43: 69 | B43: 116.3332308 | C43: 123.3791409 | D43: 442.3984121 | E43: 448.0626678 | F43: 681.7998978 | G43: 754.2417233
A44: 70 | B44: 116.3491925 | C44: 123.3553376 | D44: 444.419601 | E44: 449.686026 | F44: 680.6205 | G44: 752.718528
A45: 71 | B45: 116.3916948 | D45: 446.7114917 | F45: 679.8102498
A46: 72 | B46: 116.4607377 | D46: 449.274084 | F46: 679.3691472
A47: 73 | B47: 116.5563211 | D47: 452.1073781 | F47: 679.2971922
A48: 74 | B48: 116.6784452 | D48: 455.2113738 | F48: 679.5943848
A49: 75 | B49: 116.8271098 | D49: 458.5860713 | F49: 680.260725
A50: 76 | B50: 117.0023151 | D50: 462.2314704 | F50: 681.2962128
A51: 77 | B51: 117.2040609 | D51: 466.1475713 | F51: 682.7008482
A52: 78 | B52: 117.4323473 | D52: 470.3343738 | F52: 684.4746312
A53: 79 | B53: 117.6871744 | D53: 474.7918781 | F53: 686.6175618
A54: 80 | B54: 117.968542 | D54: 479.520084 | F54: 689.12964
A55: 81 | B55: 118.2764502 | D55: 484.5189916 | F55: 692.0108658
A56: 82 | B56: 118.610899 | D56: 489.788601 | F56: 695.2612392
A57: 83 | B57: 118.9718884 | D57: 495.328912 | F57: 698.8807602
A58: 84 | B58: 119.3594184 | D58: 501.1399248 | F58: 702.8694288
A59: 85 | B59: 119.7734889 | D59: 507.2216393 | F59: 707.227245
A60: 86 | B60: 120.2141001 | D60: 513.5740554 | F60: 711.9542088
A61: 87 | B61: 120.6812519 | D61: 520.1971733 | F61: 717.0503202
A62: 88 | B62: 121.1749442 | D62: 527.0909928 | F62: 722.5155792
A63: 89 | B63: 121.6951772 | D63: 534.255514 | F63: 728.3499858
A64: 90 | B64: 122.2419507 | D64: 541.690737 | F64: 734.55354
A65: 91 | B65: 122.8152649
A66: 92 | B66: 123.4151196
A67: 93 | B67: 124.0415149
A68: 94 | B68: 124.6944508
A69: 95 | B69: 125.3739273
A70: 96 | B70: 126.0799444
A71: 97 | B71: 126.8125021
A72: 98 | B72: 127.5716004
A73: 99 | B73: 128.3572393
A74: 100 | B74: 129.1694187
A75: 101 | B75: 130.0081388
A76: 102 | B76: 130.8733995
A77: 103 | B77: 131.7652007
A78: 104 | B78: 132.6835425
A79: 105 | B79: 133.628425
A80: 106 | B80: 134.599848
A81: 107 | B81: 135.5978116
A82: 108 | B82: 136.6223158
A83: 109 | B83: 137.6733606
A84: 110 | B84: 138.750946
A85: 111 | B85: 139.855072
A86: 112 | B86: 140.9857386
A87: 113 | B87: 142.1429458
A88: 114 | B88: 143.3266936
A89: 115 | B89: 144.5369819
A90: 116 | B90: 145.7738109
A91: 117 | B91: 147.0371804
A92: 118 | B92: 148.3270906
A93: 119 | B93: 149.6435413
A94: 120 | B94: 150.9865326

Sheet Version
A2: Version 0.4
A3: 1) Potensfel rättat i CO2-beräkning
A4: 2) Indata-kolumner från Reg Ö
A5: 3) Viktsfaktor i VQ-före rättad
A8: 4) Infört 2kf 70 före med/utan ATK och 2kf80 med/utan ATK efter
A10: 5) Infört MLV110 till MLV100
A12: 6) Rättat tidsfel i olycksmodell för MLV110
A14: V 0.44
A15: Gånger 10 för D o SS
A16: Kiloton för CO2
A17: Summa för tid
A19: V 0.45
A20: kolumn CC pekade tidigare fel till kolumn BG istället för BF. Valde därför CO2 för lbu istället för pb.
A22: V 0.46
A23: MLV 2+1 40 % i hastighetsflikens VQ avsåg tidigare S2 nu S1
A25: V 0.47
A26: Ombyggnad till MV110 tidigare endast från MLV110 nu även från MLV100
A28: V 1.0
A29: 1) VBA programmerad
A30: 2) Beräkningshjälp av ÅDT
A31: 3) Summa för respektive effekt på "Indata & Resulat
A32: 4) Hastighetssamband har uppdaterats till gällande effektsamband 2018-04-01
A33: 5) Trafiksäkerhetseffekter har uppdaterats utefter TS EVA 3.0
A34: 6) Koldioxidutsläpp har med indata från Helen Lindblom utefter beslutad politik 2019-10-03
A35: 7) D och SS beräknas återigen på årsbasis
A36: 8) Ytterligare mindre ändringar har gjorts i utformning av flikar och grafisk tydlighet
A38: V 2020:1
A39: 1) Trafikutvecklingstalen har uppdaterats för att överensstämma med nya trafikprognoser
A40: 2) Hastighetsvalen har uppdaterats för att motsvara nuvarande behov
A41: 3) CO2-värdering har uppdaterats för att spegla basprognosen
A42: 4) Ytterligare felkod har åtgärdats
A43: 5) Generella hastighetsgränser har uppdaterats till nedanstående effektsamband
B44: pb | C44: lb | D44: lbs
A45: 50-40 | B45: -1.83 | C45: -1.83 | D45: -1.83
A46: 70-60 | B46: =(0.5*B45)+(0.5*B47) -> -2.565 | C46: =(0.5*C45)+(0.5*C47) -> -1.865 | D46: =(0.5*D45)+(0.5*D47) -> -1.415
A47: 90-80 | B47: -3.3 | C47: -1.9 | D47: -1
A48: 100-80 | B48: =(0.5*-5.4)+(0.5*-5.1) -> -5.25 | C48: =(0.5*-3.4)+(0.5*-4.1) -> -3.75 | D48: =(0.5*-2.6)+(0.5*0.1) -> -1.25
A49: 110-100 | B49: -2.3 | C49: 0 | D49: -0.5
A50: 110-120 | B50: 3.7 | C50: 3.2 | D50: 0
A51: 90-100 | B51: 2.4 | C51: 1.9 | D51: 0
A52: 6) Ytterligare mindre ändringar har gjorts i utformning av flikar och grafisk tydlighet
A54: V 2021:1
A55: Rättning av potensen i årlig procenuell tillväxt vid beräkning av ÅDT
A57: V 2023:1
A58: 1) Trafikutvecklingstalen har uppdaterats för att överensstämma med nya trafikprognoser
A59: 2) Uppdaterat länk till EVA:s hemsida för referens trafikutvecklingstal
A60: 3) Enklare redaktionella förändringar och förtydliganden
A61: Förändringarna gjorda 2023-03-05, Version publiceras 2023-04-03
A63: V 2024:1
A64: 1 | B64: Uppdaterat beräkningsåret (öppningsåret) till 2028 enligt ASEK8
A65: 2 | B65: Trafikutvecklingstalen har uppdaterats för att överensstämma med nya trafikprognoser 2024
A66: 3 | B66: Emissionsfaktorer har uppdaterats enligt ny leverans från HBEFA-modellen
A67: 4 | B67: Uppdaterade potenser i potensmodellen enligt nya effektsamband
A68: 5 | B68: Enklare redaktionella förändringar
A71: V 2026.1
A72: 1 | B72: Trafikutvecklingstalen har uppdaterats för att överensstämma med nya trafikprognoser 2026

Sheet Blad1 (hidden)
A1: GIF | B1: 50 | E1: =A1&B1 -> GIF50 | F1: 40
A2: GIF | B2: 70 | E2: =A2&B2 -> GIF70 | F2: 60
A3: 2kf | B3: 90 | E3: =A3&B3 -> 2kf90 | F3: 80
A4: 2kf | B4: 100 | E4: 2kf100 | F4: 80
A5: MLV | B5: 90 | E5: MLV90 | F5: 100
A6: MLV | B6: 110 | E6: MLV110 | F6: 100
A7: MV | B7: 110 | E7: MV110 | F7: 120
A9: Ja | B9: Ja
B10: Nej | C10: Nej
B13: =IF(CO11="GIF50",Blad1!$F$1,IF(CO11="GIF70",Blad1!$F$2,IF(I11="2kf",Blad1!$F$3,IF(I11="MLV",Blad1!$F$5,IF(I11="MV",Blad1!$F$7,""))))) -> 
C14: =IF(CO11="GIF50",Blad1!$F$1,IF(CO11="GIF70",Blad1!$F$2,IF(I11="2kf",$F$3,IF(I11="MLV",Blad1!$F$5,IF(I11="MV",Blad1!$F$7,""))))) -> 
